Workbook

Sheet Istruzioni
C2: Istruzioni per la compilazione della Mappa criticità-interventi
C3: La “Mappa criticità-interventi” (di seguito Mappa) è costituita da cinque fogli di calcolo, di cui solo tre sono compilabili dall’utente (evidenziati dalla linguetta della scheda di colore blu).
C4: · Foglio “Istruzioni”
C5: · Foglio “Input tabelle”
C6: · Foglio “Criticità & Indicatori” (compilabile)
C7: · Foglio “Alternative & Selezioni” (compilabile)
C8: · Foglio “Cronoprogramma 2016-2019” (compilabile)
C9: Il colore della cella ad intestazione di ciascuna tabella indica se il dato si riferisce alla precedente programmazione 2014-2017 o alla nuova programmazione 2016-2019
D10: Dati PdI 2016-2019
D11: Dati PdI 2014-2017
C13: 1. Intestazione dei fogli di calcolo
C14: In ciascun foglio della Mappa, in testa alle tabelle, è presente una sezione di informazioni generali dove si chiede l' indicazione di ATO, Ente di Governo d’Ambito e Soggetto Gestore per il quale è stata fatta la predisposizione tariffaria, con i rispettivi codici identificativi (ID) assegnati in sede di registrazione nell’anagrafica dell’AEEGSI. Compilando questa sezione nel primo foglio della Mappa (Criticità & Indicatori), le medesime informazioni verranno automaticamente aggiornate negli altri due fogli compilabili.
C20: 2. Voci foglio di calcolo "Criticità & Indicatori"
C21: Questo foglio di calcolo è organizzato in modo tale da raccogliere le informazioni più puntuali richieste ai Capitoli 2 e 3 dello schema tipo di cui all'Allegato A alla determina 2/2016/DSID. Ciascuna riga compilabile della tabella corrisponde ad una criticità individuata dall'EGA (è stato previsto un numero di righe sufficiente a raccogliere eventualmente tutte le criticità possibili). Per criticità ancora sussistenti ripetto alla precedente pianificazione (2014-2017), sono previsti appositi riferimenti (es. "Criticità AEEGSI ex-determina 3/2014/DSID" e "Valori obiettivo PdI 2014-2017").
C22: Di seguito alcune informazioni più puntuali su specifiche voci del foglio
C24: Criticità AEEGSI e sotto-area criticità 2016-2019 ex determina 2/2016/DSID | D24: Inserire il codice delle criticità specifiche e delle sotto-aree corrispondenti utilizzando esclusivamente il menù a tendina predisposto
C25: Criticità AEEGSI ex determina 3/2014/DSID | D25: Inserire il codice delle criticità utilizzando esclusivamente il menù a tendina predisposto
C26: Località interessata/e criticità | D26: Indicare i confini amministrativi ( es. Comune/i, Provincia/e, ATO) o geografici (es. valle, pianura, bacino)
C27: Popolazione interessata criticità (ab.) | D27: Coerentemente alla località interessata dalla criticità, dare evidenza del numero di abitanti interessati (effettivamente rilevati o stimati o eventualmente facendo riferimento ai dati Istat).
C28: rilevata/stimata | D28: Nella valutazione della popolazione interessata dalla criticità, si distingue se il dato è rilevato o stimato
C29: Indicatore di performance utilizzato | D29: Nome dell'indicatore o breve descrizione (es. "Stato degli impianti")
C30: Formula [Unità di misura] | D30: Es. "popolazione servita/popolazione totale (%)"
C32: Grado di attendibilità indicatore | D32: La valutazione del grado di attendibilità segue l'omonima classificazione per codice numerico contenuta nello Schema-tipo. Il valore 1 raccoglie tutti gli indicatori costituiti da grandezze effettivamente rilevate, il valore 2 raccoglie gli indicatori "ibridi" (costruiti a partire da grandezze in parte stimate o riprese dalla letteratura tecnica-scientifica), mentre il valore 3 riguarda gli indicatori costituiti da sole grandezze stimate.
C34: 3. Voci foglio di calcolo "Alternative & Selezione"
C35: In questo foglio di calcolo sono raccolte le informazioni contenute nel Capitolo 4 dello Schema-tipo ("Strategie di intervento ed analisi delle opzioni progettuali"). Come per il foglio precedente, anche in questa tabella ciascuna riga rappresenta la criticità individuata (eventualmente replicata più volte in caso siano selezionati più interventi per risolverla), per la quale è stata condotta l'analisi delle opzioni alternative. In via previsionale, sono state inserite fino a un massimo di 10 opzioni progettuali alternative percorribili. [Nota: può accadere sia che per piu' criticita' venga selezionato il medesimo intervento, sia che per la stessa criticita' vengano selezionati piu' interventi riportati su più righe]
C36: Di seguito alcune informazioni più puntuali su specifiche voci del foglio
C38: ID Intervento pianificato | D38: Indicare un numero progressivo (1,2,3,..) che permetta di identificare univocamente ciascun singolo intervento soggetto ad analisi delle opzioni alternative.
C39: Titolo intervento | D39: Si richiede un’indicazione sintetica, eventualmente anche mediante l’utilizzo di parole chiave (es. realizzazione nuovo potabilizzatore, efficientamento impianto sollevamento etc.).
C40: Costo totale intervento | D40: Si chiede di indicare il costo totale dell'intervento previsto per il quadriennio 2016-2019.
C41: Popolazione interessata intervento (ab) | D41: Dare evidenza del numero di abitanti interessati dall'intervento (effettivamente rilevati, stimati o eventualmente facendo riferimento ai dati Istat). In coerenza con la voce "Popolazione interessata dalla criticità", tale valore non può essere maggiore di quest'ultimo.
C42: Livello obiettivo finale | D42: Si intende il livello obiettivo che si prevede raggiungere a conclusione dell'intervento pianificato.
C43: Opzione 0 | D43: Definire in questa voce (se considerata) solo la situazione in assenza di realizzazione dell'intervento.
C44: Costo previsto opzione 0 | D44: La misura del costo dell'Opzione 0 ad esempio può essere espressa in termini di costo potenziale (es. costo della multa) o in termini di costo per manutenzioni straordinarie.
C45: Opzione n | D45: Come per la voce dell'intervento pianificato, si richiede un'indicazione sintetica o per parole chiave delle opzioni progettuali alternative. Con riferimento al costo, alla popolazione interessata, al livello obiettivo, vedere le medesime voci specificate per l'intervento.
C48: 4. Voci foglio di calcolo "Cronoprogramma 2016-2019"
C49: Questo foglio rappresenta la sintesi della fase conclusiva del procedimento di pianificazione degli interventi per il quadriennio 2016-2019, la cui descrizione è contenuta nel Capitolo 5 dello Schema-tipo. Il foglio dà altresì evidenza degli eventuali scostamenti di cui al Capitolo 6 (sia con riferimento agli investimenti realizzati negli anni 2014-2015 che programmati negli anni 2016-2017). Rispetto ai fogli precedenti, la logica di allocazione delle criticità e dei costi nel Cronoprogramma 2016-2019 avviene per singolo intervento. La tabella contiene 250 righe, ma viene concessa la possibilità di aggiungere o eliminare righe tramite appositi pulsanti (non è possibile aggiungere righe manualmente). [Nota: nel caso in cui un intervento risolva più criticità, occorre replicarlo su più righe in numero corrispondente alle criticità risolte]
C50: Di seguito alcune informazioni più puntuali su specifiche voci del foglio
C52: ID Intervento pianificato | D52: Indicare un numero progressivo (1,2,3,..) che permetta di identificare univocamente ciascun singolo intervento soggetto ad analisi delle opzioni alternative, in coerenza con la rispettiva voce del foglio "Alternative & Selezioni". Nel caso in cui nel Cronoprogramma si sia reso necessario scorporare l'intervento in n sotto-interventi (ad esempio a livello territoriale), in ragione della differente entrata in esercizio, l'ID di riferimento dovrà essere scomposto in maniera coerente (es. 1.1, 1.2, 1.3,.., 1.n).
C53: Titolo intervento | D53: Deve coincidere con quella indicata nel foglio "Alternative & Selezioni".
C54: Intervento presente nel PdI 2014-2017? | D54: Indicare se l'intervento riportato era già stato programmato nel precedente PdI 2014-2017; la scelta è limitata da un apposito menù a tendina.
C55: Popolazione interessata criticità (ab) | D55: Deve coincidere con l'omonimo valore indicato nel foglio "Criticità & Indicatori".
C56: Rilevata/stimata | D56: Segue lo stesso sistema di valutazione del "Grado di affidabilità popolazione criticità" contenuto nel foglio "Criticità & Indicatori".
C57: Località interessata/e criticità | D57: Indicare i confini amministrativi ( es. Comune/i, Provincia/e, ATO) o geografici (es. valle, pianura, bacino) su cui impatta l'intervento selezionato. Non deve/devono essere più estesa/e dell'area che subisce la criticità.
C58: Iter autorizzativo concluso? | D58: Fa riferimento all’eventuale necessità di permessi, nulla osta, altre eventuali autorizzazioni. Nel caso l’intervento non necessiti di alcuna autorizzazione, selezionare la voce N.A. (non applicabile).
C59: Stadio di progettazione/esecuzione | D59: Indica il livello di maturità degli interventi pianificati; la scelta è limitata da un apposito menù a tendina.
C60: Livello obiettivo PdI 2014-2017 | D60: Tale valore si riferisce agli anni 2016 e 2017; se non si dispone del valore disaggregato per i due anni di pianificazione compilare solo la cella relativa all'anno cui fa riferimento il valore obiettivo finale dell'indicatore.
C61: Livello obiettivo PdI 2016-2019 | D61: Se non si dispone del valore disaggregato per i quattro anni di pianificazione compilare solo la cella relativa all'anno cui fa riferimento il valore obiettivo finale dell'indicatore.
C62: Post-2019 | D62: Questa voce si applica nell'eventualità in cui la risoluzione della criticità sia prevista in un anno successivo al 2019, così come il raggiungimento del valore obiettivo. In questo caso si richiede anche di indicare l'anno di raggiungimento di tale valore (la cella "Anno?" è compilabile).
C63: Investimento realizzato | D63: Tale voce fa riferimento alla realizzazione degli interventi la cui spesa nel precedente ciclo di pianificazione (2014-2017) era stata imputata nel solo biennio 2014-2015, in coerenza con l'art. 11 dell'Allegato A alla delibera 664/2015/R/IDR.
C64: Investimento pianificato PdI 2014-2017 | D64: Tale voce fa riferimento agli investimenti che nel precedente PdI erano stati pianificati negli anni 2016 e 2017, che si sovrappongono con i primi due anni del nuovo ciclo di pianificazione.
C65: Investimento pianificato PdI 2016-2019 | D65: E’ possibile imputare solo l’importo per le singole annualità. Il foglio elabora automaticamente la somma sia per la quota finanziata con tariffa sia per la quota finanziata con contributo pubblico.

Sheet Input tabelle
C2: Input fogli di calcolo
C4: Criticità AEEGSI ex determina 2/2016/DSID | E4: Sotto-area 2016-2019 ex determina 2/2016/DSID | G4: Criticità AEEGSI ex determina 3/2014/DSID | I4: Grado di affidabilità popolazione
C5: K1.1
C6: K1.1 | E6: K1 | G6: A1 | I6: rilevata
C7: K2.1 | E7: K2 | G7: A2 | I7: stimata
C8: K3.1 | E8: K3 | G8: A3
C9: K4.1 | E9: K4 | G9: A4
C10: K5.1 | E10: K5 | G10: A5 | I10: Grado di affidabilità indicatore
C11: A1.1 | E11: A1 | G11: B1
C12: A1.2 | E12: A2 | G12: B2 | I12: 1
C13: A1.3 | E13: A3 | G13: B3 | I13: 2
C14: A1.4 | E14: A4 | G14: B4 | I14: 3
C15: A2.1 | E15: A5 | G15: B5
C16: A2.2 | E16: A6 | G16: B6
C17: A3.1 | E17: A7 | G17: B7 | I17: Iter autorizzativo concluso?
C18: A3.2 | E18: A8 | G18: B8
C19: A4.1 | E19: A9 | G19: C1 | I19: SI
C20: A4.2 | E20: A10 | G20: C2 | I20: NO
C21: A4.3 | E21: P1 | G21: C3 | I21: N.A.
C22: A5.1 | E22: P2 | G22: C4
C23: A5.2 | E23: P3 | G23: C5
C24: A5.3 | E24: P4 | G24: D1 | I24: Stadio di progettazione/esecuzione
C25: A6.1 | E25: P5 | G25: D2
C26: A7.1 | E26: P6 | G26: D3 | I26: Scheda progetto
C27: A7.2 | E27: P7 | G27: D4 | I27: Studio di fattibilità
C28: A7.3 | E28: B1 | G28: E1 | I28: Progetto preliminare
C29: A7.4 | E29: B2 | G29: E2 | I29: Progetto definitivo
C30: A7.5 | E30: B3 | G30: E3 | I30: Progetto esecutivo
C31: A8.1 | E31: B4 | G31: E4 | I31: Lavori aggiudicati
C32: A8.2 | E32: B5 | G32: E5 | I32: Lavori in corso
C33: A9.1 | E33: B6 | G33: F1
C34: A9.2 | E34: B7 | G34: F2
C35: A10 | E35: B8 | G35: F3 | I35: Intervento presente nel PdI 2014-2017?
C36: P1.1 | E36: B9 | G36: F4
C37: P1.2 | E37: B10 | G37: F5 | I37: Sì
C38: P1.3 | E38: B11 | G38: F6 | I38: No
C39: P1.4 | E39: C1 | G39: F7
C40: P1.5 | E40: C2 | G40: F8
C41: P1.6 | E41: C3 | G41: G1
C42: P1.7 | E42: C4 | G42: G2
C43: P1.8 | E43: C5 | G43: G3
C44: P2.1 | E44: C6 | G44: G4
C45: P2.2 | E45: C7 | G45: G5
C46: P2.3 | E46: C8
C47: P3.1 | E47: D1
C48: P3.2 | E48: D2
C49: P4.1 | E49: D3
C50: P4.2 | E50: D4
C51: P4.3 | E51: D5
C52: P5.1 | E52: D6
C53: P5.2 | E53: G1
C54: P6.1 | E54: G2
C55: P6.2 | E55: G3
C56: P7.1 | E56: G4
C57: B1.1 | E57: G5
C58: B1.2 | E58: M1
C59: B1.3 | E59: M2
C60: B1.4 | E60: M3
C61: B1.5 | E61: M4
C62: B2.1 | E62: M5
C63: B3.1
C64: B4.1
C65: B4.2
C66: B5.1
C67: B6.1
C68: B6.2
C69: B6.3
C70: B7.1
C71: B8.1
C72: B9.1
C73: B9.2
C74: B10.1
C75: B10.2
C76: B11.1
C77: C1.1
C78: C2.1
C79: C2.2
C80: C2.3
C81: C2.4
C82: C2.5
C83: C2.6
C84: C2.7
C85: C2.8
C86: C2.9
C87: C3.1
C88: C4.1
C89: C4.2
C90: C5.1
C91: C6.1
C92: C6.2
C93: C7.1
C94: C7.2
C95: C8.1
C96: D1.1
C97: D1.2
C98: D1.3
C99: D1.4
C100: D1.5
C101: D2.1
C102: D2.2
C103: D2.3
C104: D2.4
C105: D2.5
C106: D2.6
C107: D2.7
C108: D2.8
C109: D2.9
C110: D2.10
C111: D3.1
C112: D3.2
C113: D4.1
C114: D4.2
C115: D4.3
C116: D4.4
C117: D5.1
C118: D5.2
C119: D6.1
C120: D6.2
C121: D6.3
C122: G1.1
C123: G2.1
C124: G3.1
C125: G4.1
C126: G5.1
C127: M1.1
C128: M1.2
C129: M1.3
C130: M1.4
C131: M1.5
C132: M2.1
C133: M3.1
C134: M4.1
C135: M4.2
C136: M4.3
C137: M4.4
C138: M4.5
C139: M4.6
C140: M4.7
C141: M4.8
C142: M5.1

Sheet Criticità & Indicatori
B2: ATO | C2: ATO2 - Lazio Centrale Roma | D2: ID ATO | E2: 1202 | H2: Dati PdI 2016-2019
B3: Ente di Governo d'Ambito | C3: Ambito Territoriale 2 - Lazio Centrale - Roma | D3: ID Ente di Governo d'Ambito | E3: 19898
B4: Soggetto Gestore | C4: Acea Ato2 S.p.A. | D4: ID Soggetto Gestore | E4: 13989 | H4: Dati PdI 2014-2017
B6: Criticità AEEGSI ex determina 2/2016/DSID | C6: Sotto-area 2016-2019 ex determina 2/2016/DSID | D6: Criticità AEEGSI ex determina 3/2014/DSID | E6: Località interessata/e criticità | F6: Popolazione interessata criticità PdI 2016-2019 (ab.) | G6: Rilevata/ Stimata | H6: Incidenza su pop. Totale ATO (%) | I6: Indicatore di performance utilizzato | J6: Formula [Unità di misura] | K6: Grado di attendibilità indicatore | L6: Livello attuale al 31-12-2015 | M6: Livello obiettivo PdI (2014-2017)
B8: A1.1 | C8: A1 | D8: A5 | E8: Fiano Romano, Velletri, Saracinesco | F8: 14790 | G8: stimata | H8: 0.004108333333 | I8: Volume degli investimenti | J8: Importo eseguito/Importo previsto [%] | K8: 1 | L8: 0
B9: A1.2 | C9: A1 | D9: B2 | E9: Vari Comuni ATO2 | F9: 288310 | G9: stimata | H9: 0.08008611111 | I9: Volume degli investimenti | J9: Importo eseguito/Importo previsto [%] | K9: 1 | L9: 0
B10: A4.1 | C10: A4 | D10: A1 | E10: Intero Territorio ATO2 gestito | F10: 3600000 | G10: stimata | H10: 1 | I10: Volume degli investimenti | J10: Importo eseguito/Importo previsto [%] | K10: 2 | L10: 0
B11: A4.2 | C11: A4 | D11: A4 | E11: Intero Territorio ATO2 gestito | F11: 3600000 | G11: stimata | H11: 1 | I11: Volume degli investimenti | J11: Importo eseguito/Importo previsto [%] | K11: 1 | L11: 0
B12: B1.1 | C12: B1 | D12: B1 | E12: Intero Territorio ATO2 gestito | F12: 3600000 | G12: stimata | H12: 1 | I12: Tasso di rinnovo | J12: Lunghezza rete bonificata/Lunghezza obiettivo [%] | K12: 2 | L12: 5
B13: B7.1 | C13: B7 | D13: A1 | E13: Vari Comuni ATO2 | F13: 30000 | G13: stimata | H13: 0.008333333333 | I13: Tasso di estensione | J13: Lunghezza rete distribuzione posata/Lunghezza obiettivo [%] | K13: 2 | L13: 8
B14: B8.1 | C14: B8 | D14: A5 | E14: Vari Comuni ATO2 | F14: 1040700 | G14: stimata | H14: 0.2890833333 | I14: Volume degli investimenti | J14: Importo eseguito/Importo previsto [%] | K14: 1 | L14: 0
B15: C1.1 | C15: C1 | D15: C1 | E15: Vari Comuni ATO2 | F15: 86000 | G15: stimata | H15: 0.02388888889 | I15: Tasso di estensione | J15: Lunghezza rete posata/Lunghezza obiettivo [%] | K15: 2 | L15: 3
B16: C2.1 | C16: C2 | D16: C2 | E16: Intero Territorio ATO2 gestito | F16: 3600000 | G16: stimata | H16: 1 | I16: Tasso di rinnovo | J16: Lunghezza rete bonificata/Lunghezza obiettivo [%] | K16: 2 | L16: 4
B17: D1.1 | C17: D1 | D17: D1 | E17: Vari Comuni ATO2 | F17: 2236900 | G17: stimata | H17: 0.6213611111 | I17: numero depuratori saturi | J17: Impianti senza capacità residua [n°] | K17: 2 | L17: 47
B18: D1.1 | C18: D1 | D18: D1 | E18: Vari Comuni ATO2 | F18: 69243 | G18: stimata | H18: 0.01923416667 | I18: abitanti non depurati | J18: Abitanti allacciati alla pubblica fognatura ma non depurati [n°] | K18: 2 | L18: 69243
B19: D2.4 | C19: D2 | D19: D4 | E19: Vari Comuni ATO2 | F19: 172550 | G19: stimata | H19: 0.04793055556 | I19: Volume degli investimenti | J19: Importo eseguito/Importo previsto [%] | K19: 1 | L19: 0
C20: D2 | D20: D2 | E20: Intero Territorio ATO2 gestito | F20: 3600000 | G20: stimata | H20: 1 | I20: Volume degli investimenti | J20: Importo eseguito/Importo previsto [%] | K20: 1 | L20: 0
B21: D6.3 | C21: D6 | D21: D3 | E21: Vari Comuni ATO2 | F21: 1170200 | G21: stimata | H21: 0.3250555556 | I21: Volume degli investimenti | J21: Importo eseguito/Importo previsto [%] | K21: 1 | L21: 0
B22: D6.3 | C22: D6 | D22: D4 | E22: Vari Comuni ATO2 | F22: 1170200 | G22: stimata | H22: 0.3250555556 | I22: Volume degli investimenti | J22: Importo eseguito/Importo previsto [%] | K22: 1 | L22: 0
C23: M4 | D23: E3 | E23: Roma | F23: 2600000 | G23: stimata | H23: 0.7222222222 | I23: Volume degli investimenti | J23: Importo eseguito/Importo previsto [%] | K23: 1 | L23: 0
B24: B10.2 | C24: B10 | D24: F4 | E24: Intero Territorio ATO2 gestito | F24: 3600000 | G24: stimata | H24: 1 | I24: Misuratori di utenza sostituiti | J24: Misuratori di utenza sostituiti (n.) | K24: 1 | L24: 0
B25: M1.1 | C25: M1 | E25: Intero Territorio ATO2 gestito | F25: 3600000 | G25: stimata | H25: 1 | I25: Impianti in telecontrollo | J25: Percentuale impianti telecontrollati (%) | K25: 1 | L25: 47
B26: M5.1 | C26: M5 | E26: Intero Territorio ATO2 gestito | F26: 3600000 | G26: stimata | H26: 1 | I26: Volume degli investimenti | J26: Importo eseguito/Importo previsto [%] | K26: 1 | L26: 0

Sheet Alternative & Selezioni
B2: ATO | C2: =IF('Criticità & Indicatori'!C2=0,"",'Criticità & Indicatori'!C2) -> ATO2 - Lazio Centrale Roma | D2: ID ATO | E2: =IF('Criticità & Indicatori'!E2=0,"",'Criticità & Indicatori'!E2) -> 1202 | H2: Dati PdI 2016-2019
B3: Ente di Governo d'Ambito | C3: =IF('Criticità & Indicatori'!C3=0,"",'Criticità & Indicatori'!C3) -> Ambito Territoriale 2 - Lazio Centrale - Roma | D3: ID Ente di Governo d'Ambito | E3: =IF('Criticità & Indicatori'!E3=0,"",'Criticità & Indicatori'!E3) -> 19898
B4: Soggetto Gestore | C4: =IF('Criticità & Indicatori'!C4=0,"",'Criticità & Indicatori'!C4) -> Acea Ato2 S.p.A. | D4: ID Soggetto Gestore | E4: =IF('Criticità & Indicatori'!E4=0,"",'Criticità & Indicatori'!E4) -> 13989 | H4: Dati PdI 2014-2017
B6: Criticità AEEGSI ex determina 2/2016/DSID | C6: Sotto-area 2016-2019 ex determina 2/2016/DSID | D6: ID intervento pianificato | E6: Titolo Intervento pianificato | F6: Costo totale intervento | G6: Popolazione interessata intervento (ab.) | H6: Livello obiettivo finale | I6: Opzione 0 (Titolo intervento) | J6: Costo previsto Opzione 0 | K6: Popolazione interessata Opzione 0 | L6: Opzione 1 (Titolo intervento) | M6: Costo previsto Opzione 1 | N6: Popolazione interessata Opzione 1 | O6: Livello obiettivo Opzione 1 | P6: Opzione 2 (Titolo intervento) | Q6: Costo previsto Opzione 2 | R6: Popolazione interessata Opzione 2 | S6: Livello obiettivo Opzione 2 | T6: Opzione 3 (Titolo intervento) | U6: Costo previsto Opzione 3 | V6: Popolazione interessata Opzione 3 | W6: Livello obiettivo Opzione 3 | X6: Opzione 4 (Titolo intervento) | Y6: Costo previsto Opzione 4 | Z6: Popolazione interessata Opzione 4 | AA6: Livello obiettivo Opzione 4 | AB6: Opzione 5 (Titolo intervento) | AC6: Costo previsto Opzione 5 | AD6: Popolazione interessata Opzione 5 | AE6: Livello obiettivo Opzione 5 | AF6: Opzione 6 (Titolo intervento) | AG6: Costo previsto Opzione 6 | AH6: Popolazione interessata Opzione 6 | AI6: Livello obiettivo Opzione 6 | AJ6: Opzione 7 (Titolo intervento) | AK6: Costo previsto Opzione 7 | AL6: Popolazione interessata Opzione 7 | AM6: Livello obiettivo Opzione 7 | AN6: Opzione 8 (Titolo intervento) | AO6: Costo previsto Opzione 8 | AP6: Popolazione interessata Opzione 8 | AQ6: Livello obiettivo Opzione 8 | AR6: Opzione 9 (Titolo intervento) | AS6: Costo previsto Opzione 9 | AT6: Popolazione interessata Opzione 9 | AU6: Livello obiettivo Opzione 9 | AV6: Opzione 10 (Titolo intervento) | AW6: Costo previsto Opzione 10 | AX6: Popolazione interessata Opzione 10 | AY6: Livello obiettivo Opzione 10
B8: A4.1 | C8: A4 | D8: 64 | E8: MESSA IN SICUREZZA ACQUEDOTTO PESCHIERA | F8: 10000000 | G8: 2000000 | I8: MANCATO RADDOPPIO ACQUEDOTTO PESCHIERA | J8: 597596000 | K8: 2000000
B9: D1.1 | C9: D1 | D9: 430 | E9: MAGLIANELLA VI TRONCO BY-PASS DEP.PALMAROLA (ELIM. SCARICO F51) - PROC. DI INFRAZIONE 2014/2059 | F9: 7000000 | G9: 100000 | I9: MANCATA REALIZZAZIONE COLLETTORE MAGLIANELLA VI TRONCO | J9: 47810000 | K9: 100000
B10: D2.4 | C10: D2 | D10: 481 | E10: DISMISSIONE DEPURATORI MONTE POZZOLANA E VALLE LINDA | F10: 2500000 | G10: 3500 | I10: MANCATA CENTRALIZZAZIONE IMPIANTI DI DEPURAZIONE | K10: 3500
B11: D2.4 | C11: D2 | D11: 482 | E11: COLLETTORE FOGNARIO DI ARANOVA | F11: 500000 | G11: 5600 | I11: MANCATA CENTRALIZZAZIONE IMPIANTI DI DEPURAZIONE | K11: 5600
B12: D2.4 | C12: D2 | D12: 483 | E12: RISANAMENTO SANITARIO DI MONTECOMPATRI E ROMA | F12: 1000000 | G12: 40000 | I12: MANCATA CENTRALIZZAZIONE IMPIANTI DI DEPURAZIONE | K12: 40000
B13: D2.4 | C13: D2 | D13: 484 | E13: COLLETTORE INTERCOMUNALE PER LA RACCOLTA DELLE ACQUE REFLUE E RELATIVO IMPIANTO DI DEPURAZIONE NEI TERRITORI DI CARPINETO ROMANO, GAVIGNANO, MONTELACINO - I LOTTO | F13: 1500000 | G13: 6000 | I13: MANCATA CENTRALIZZAZIONE IMPIANTI DI DEPURAZIONE | K13: 6000
B14: D2.4 | C14: D2 | D14: 485 | E14: ELIM. DEP.COLLE PISANO E SONNINO - MONTE PORZIO CATONE II° STRALCIO ELIMINAZIONE DEPURATORE SONNINO | F14: 1394250 | G14: 5000 | I14: MANCATA CENTRALIZZAZIONE IMPIANTI DI DEPURAZIONE | K14: 5000
B15: D2.4 | C15: D2 | D15: 486 | E15: ELIM. DEP.COLLE PISANO E SONNINO - MONTE PORZIO CATONE I° STRALCIO ELIM. DEPURATORE COLLE PISANO | F15: 774538.9 | G15: 9600 | I15: MANCATA CENTRALIZZAZIONE IMPIANTI DI DEPURAZIONE | K15: 9600
B16: D2.4 | C16: D2 | D16: 487 | E16: DISMISSIONE DEPURATORI PONTE SODO E MONTELUNGO | F16: 2103785 | G16: 1000 | I16: MANCATA CENTRALIZZAZIONE IMPIANTI DI DEPURAZIONE | K16: 1000
B17: D2.4 | C17: D2 | D17: 488 | E17: ADEGUAMENTO IMPIANTO FOSSO CIPPONE ED ELIMINAZIONE FOSSO IANNI | F17: 2572903 | G17: 4000 | I17: MANCATA CENTRALIZZAZIONE IMPIANTI DI DEPURAZIONE | K17: 4000
B18: D2.4 | C18: D2 | D18: 489 | E18: ELIMINAZIONE DEPURATORE PONTE DI NONA | F18: 468000 | G18: 1000 | I18: MANCATA CENTRALIZZAZIONE IMPIANTI DI DEPURAZIONE | K18: 1000
B19: D2.4 | C19: D2 | D19: 490 | E19: ELIMINAZIONE DEPURATORE NUOVA PALOCCO | F19: 1450215 | G19: 1400 | I19: MANCATA CENTRALIZZAZIONE IMPIANTI DI DEPURAZIONE | K19: 1400
B20: D2.4 | C20: D2 | D20: 491 | E20: ELIMINAZIONE DELL’IMPIANTO DI DEPURAZIONE CASE ROSSE DEL COMUNE DI ROMA | F20: 954037.5 | G20: 10500 | I20: MANCATA CENTRALIZZAZIONE IMPIANTI DI DEPURAZIONE | K20: 10500
B21: D2.4 | C21: D2 | D21: 492 | E21: ELIMINAZIONE DEPURATORE PARCO DELLA TIBURTINA | F21: 482625 | G21: 900 | I21: MANCATA CENTRALIZZAZIONE IMPIANTI DI DEPURAZIONE | K21: 900
B22: D2.4 | C22: D2 | D22: 493 | E22: ELIMINAZIONE DEPURATORE FINOCCHIO E COLLETTAMENTO A ROMA EST | F22: 2000000 | G22: 40000 | I22: MANCATA CENTRALIZZAZIONE IMPIANTI DI DEPURAZIONE | K22: 40000
B23: D2.4 | C23: D2 | D23: 494 | E23: ELIMINAZIONE DEL DEPURATORE "GUADO TUFO" | F23: 500000 | G23: 300 | I23: MANCATA CENTRALIZZAZIONE IMPIANTI DI DEPURAZIONE | K23: 300
B24: D2.4 | C24: D2 | D24: 495 | E24: ELIMINAZIONE DEPURATORE FONTANE NUOVE | F24: 1000000 | G24: 650 | I24: MANCATA CENTRALIZZAZIONE IMPIANTI DI DEPURAZIONE | K24: 650
B25: D2.4 | C25: D2 | D25: 496 | E25: COLLETTORE FOGNARIO BIVIO SAN POLO - POLVERIERA | F25: 2663018 | G25: 1200 | I25: MANCATA CENTRALIZZAZIONE IMPIANTI DI DEPURAZIONE | K25: 1200
B26: D2.4 | C26: D2 | D26: 497 | E26: COLLETTORE FOGNARIO CAPANNELLE - PONTE LUCANO DI TIVOLI | F26: 4177875 | G26: 7100 | I26: MANCATA CENTRALIZZAZIONE IMPIANTI DI DEPURAZIONE | K26: 7100
B27: D2.4 | C27: D2 | D27: 498 | E27: COLLEGAMENTO A ROMA EST DEL DEPURATORE DI BORGONOVO | F27: 1000000 | G27: 33800 | I27: MANCATA CENTRALIZZAZIONE IMPIANTI DI DEPURAZIONE | K27: 33800
B28: D2.4 | C28: D2 | D28: 499 | E28: ELIMINAZIONE DEPURATORE ARCI | F28: 1657500 | G28: 1000 | I28: MANCATA CENTRALIZZAZIONE IMPIANTI DI DEPURAZIONE | K28: 1000

Sheet Cronoprogramma 2016-2019
J2: Aggiungi/Elimina righe | N2: N.
B3: ATO | C3: =IF('Criticità & Indicatori'!C2=0,"",'Criticità & Indicatori'!C2) -> ATO2 - Lazio Centrale Roma | D3: ID ATO | E3: =IF('Criticità & Indicatori'!E2=0,"",'Criticità & Indicatori'!E2) -> 1202 | H3: Dati PdI 2016-2019 | K3: Aggiunge a partire dalla prima riga vuota (NB compilare le prime due righe) | N3: 119
B4: Ente di Governo d'Ambito | C4: =IF('Criticità & Indicatori'!C3=0,"",'Criticità & Indicatori'!C3) -> Ambito Territoriale 2 - Lazio Centrale - Roma | D4: ID Ente di Governo d'Ambito | E4: =IF('Criticità & Indicatori'!E3=0,"",'Criticità & Indicatori'!E3) -> 19898 | K4: Elimina righe vuote | N4: 1
B5: Soggetto Gestore | C5: =IF('Criticità & Indicatori'!C4=0,"",'Criticità & Indicatori'!C4) -> Acea Ato2 S.p.A. | D5: ID Soggetto Gestore | E5: =IF('Criticità & Indicatori'!E4=0,"",'Criticità & Indicatori'!E4) -> 13989 | H5: Dati PdI 2014-2017 | K5: Elimina riga compilata: selezionare la riga che si intende eliminare
B7: Analisi interventi | N7: Valori obiettivo | U7: Investimento realizzato | Y7: Investimento pianificato PdI 2014-2017 | AC7: Investimento pianificato PdI 2016-2019
B8: ID intervento pianificato | C8: Titolo Intervento pianificato | D8: Intervento presente nel PdI 2014-2017? | E8: Sotto-area 2016-2019 ex determina 2/2016/DSID | F8: Criticità AEEGSI ex determina 2/2016/DSID | G8: Popolazione interessata criticità (ab) | H8: Popolazione interessata intervento (ab.) | I8: Rilevata/ Stimata | J8: Località interessata/e intervento | K8: Iter autorizzativo concluso? | L8: Stadio di progettazione/esecuzione | M8: Entrata in esercizio prevista (anno) | N8: PdI 2014-2017 | P8: PdI 2016-2019 | T8: Post 2019 | U8: 2014 | W8: 2015 | Y8: 2016 | AA8: 2017 | AC8: 2016 | AE8: 2017 | AG8: 2018 | AI8: 2019 | AK8: TOTALE 2016-2019
N9: 2016 | O9: 2017 | P9: 2016 | Q9: 2017 | R9: 2018 | S9: 2019 | T9: Anno? (Specificare) | U9: Finanziato da tariffa | V9: Finanziamento pubblico | W9: Finanziato da tariffa | X9: Finanziamento pubblico | Y9: Finanziato da tariffa | Z9: Finanziamento pubblico | AA9: Finanziato da tariffa | AB9: Finanziamento pubblico | AC9: Finanziato da tariffa | AD9: Finanziamento pubblico | AE9: Finanziato da tariffa | AF9: Finanziamento pubblico | AG9: Finanziato da tariffa | AH9: Finanziamento pubblico | AI9: Finanziato da tariffa | AJ9: Finanziamento pubblico | AK9: Finanziato da tariffa | AL9: Finanziamento pubblico
B10: 1 | C10: NUOVO POZZO SASSETE | D10: SI | E10: A1 | F10: A1.1 | G10: 14790 | H10: 2500 | I10: stimata | J10: FIANO ROMANO | K10: SI | L10: Scheda progetto | M10: 2016 | S10: 0 | Y10: 0 | AA10: 0 | AC10: 128691.615 | AE10: 0 | AG10: 0 | AI10: 0 | AK10: =SUM(AC10+AE10+AG10+AI10) -> 128691.615 | AL10: =SUM(AD10+AF10+AH10+AJ10) -> 0
B11: 2 | C11: PERFORAZIONE NUOVO POZZO | D11: NO | E11: A1 | F11: A1.1 | G11: 14790 | H11: 190 | I11: rilevata | J11: SARACINESCO | K11: NO | L11: Scheda progetto | M11: 2017 | S11: 0 | U11: 0 | W11: 0 | Y11: 0 | AA11: 0 | AC11: 0 | AE11: 180000 | AG11: 0 | AI11: 0 | AK11: =SUM(AC11+AE11+AG11+AI11) -> 180000 | AL11: =SUM(AD11+AF11+AH11+AJ11) -> 0
B12: 3 | C12: RICERCA IDRICA VELLETRI (per la sotituzione pozzi MAPROL, VICARIO e MARRUCCO) | D12: NO | E12: A1 | F12: A1.1 | G12: 14790 | H12: 12100 | I12: stimata | J12: VELLETRI | K12: NO | L12: Scheda progetto | M12: 2017 | S12: 0 | U12: 21189.38 | W12: 7019.62 | Y12: 0 | AA12: 0 | AC12: 0 | AE12: 1000000 | AG12: 0 | AI12: 0 | AK12: =SUM(AC12+AE12+AG12+AI12) -> 1000000 | AL12: =SUM(AD12+AF12+AH12+AJ12) -> 0
B13: 4 | C13: POSA NUOVA CONDOTTA VIA DELLA SELVOTTA, OSPEDALE REGINA APOSTOLORUM | D13: SI | E13: A1 | F13: A1.2 | G13: 288310 | H13: 20 | I13: stimata | J13: ALBANO LAZIALE | K13: SI | L13: Progetto definitivo | M13: 2016 | S13: 0 | Y13: 0 | AA13: 0 | AC13: 44785 | AE13: 0 | AG13: 0 | AI13: 0 | AK13: 44785 | AL13: 0
B14: 5 | C14: POTABILIZZATORE CINQUE BOTTINI | D14: NO | E14: A1 | F14: A1.2 | G14: 288310 | H14: 1100 | I14: stimata | J14: ALLUMIERE | K14: SI | L14: Progetto definitivo | M14: 2016 | S14: 0 | U14: 0 | W14: 10132.58 | Y14: 0 | AA14: 0 | AC14: 500000 | AE14: 0 | AG14: 0 | AI14: 0 | AK14: 500000 | AL14: 0
B15: 6 | C15: PIANO DI RIENTRO ARICCIA - COLLEGAMENTI RETE IDRICA BASSA | D15: NO | E15: A1 | F15: A1.2 | G15: 288310 | H15: 110 | I15: stimata | J15: ARICCIA | K15: NO | L15: Scheda progetto | M15: 2016 | S15: 0 | Y15: 0 | AA15: 0 | AC15: 371800 | AE15: 0 | AG15: 0 | AI15: 0 | AK15: 371800 | AL15: 0
B16: 7 | C16: CONDOTTA IDRICA DAL POZZO ASSURA AL SERBATOIO MONTE LA GUARDIA (CASTELNUOVO DI PORTO) | D16: SI | E16: A1 | F16: A1.2 | G16: 288310 | H16: 8000 | I16: stimata | J16: CASTELNUOVO DI PORTO | K16: SI | L16: Scheda progetto | M16: 2016 | S16: 0 | U16: 17656.96 | W16: 3442.5 | Y16: 0 | AA16: 0 | AC16: 707030.051 | AE16: 0 | AG16: 0 | AI16: 0 | AK16: 707030.051 | AL16: 0
B17: 8 | C17: NUOVO SERBATOIO "PREZIOSA" E CONDOTTE DI COLLEGAMENTO | D17: SI | E17: A1 | F17: A1.2 | G17: 288310 | H17: 29630 | I17: rilevata | J17: CIAMPINO | K17: SI | L17: Lavori in corso | M17: 2016 | S17: 0 | U17: 1067788 | W17: 453534.4 | Y17: 1445705.391 | AA17: 0 | AC17: 3480120.007 | AE17: 0 | AG17: 0 | AI17: 0 | AK17: 3480120.007 | AL17: 0
B18: 9 | C18: POTABILIZZATORE SASSETE | D18: NO | E18: A1 | F18: A1.2 | G18: 288310 | H18: 13900 | I18: stimata | J18: FIANO ROMANO | K18: SI | L18: Progetto definitivo | M18: 2016 | S18: 0 | U18: 0 | W18: 30571.82 | Y18: 0 | AA18: 0 | AC18: 500000 | AE18: 0 | AG18: 0 | AI18: 0 | AK18: 500000 | AL18: 0
B19: 10 | C19: BONIFICA RETI ACQUEDOTTI ARSIAL - TRAGLIATELLA | D19: SI | E19: A1 | F19: A1.2 | G19: 288310 | H19: 500 | I19: rilevata | J19: FIUMICINO | K19: NO | L19: Scheda progetto | M19: OLTRE 2019 | S19: 0 | U19: 0 | W19: 0 | Y19: 5200000 | AA19: 5200000 | AC19: 0 | AE19: 0 | AG19: 1500000 | AI19: 1500000 | AK19: 3000000 | AL19: 0
B20: 11 | C20: BONIFICA RETI ACQUEDOTTI ARSIAL - PRATARONI, TRAGLIATA, TESTA DI LEPRE | D20: SI | E20: A1 | F20: A1.2 | G20: 288310 | H20: 1500 | I20: rilevata | J20: FIUMICINO | K20: NO | L20: Progetto preliminare | M20: OLTRE 2019 | S20: 0 | U20: 0 | W20: 165555.4 | Y20: 5200000 | AA20: 5200000 | AC20: 0 | AE20: 2000000 | AG20: 3000000 | AI20: 3000000 | AK20: 8000000 | AL20: 0
B21: 12 | C21: ALIMENTAZIONE INTEGRATIVA DEL SISTEMA IDRICO DI FRASCATI DALL'VIII SIFONE | D21: SI | E21: A1 | F21: A1.2 | G21: 288310 | H21: 22350 | I21: rilevata | J21: FRASCATI | K21: SI | L21: Progetto esecutivo | M21: 2017 | S21: 0 | U21: 729.79 | W21: 1890.25 | Y21: 1950000 | AA21: 3237000 | AC21: 3077000 | AE21: 2500000 | AG21: 0 | AI21: 0 | AK21: 5577000 | AL21: 0
B22: 13 | C22: POTABILIZZATORE E ADEGUAMENTO CENTRALE LAURENTINA | D22: NO | E22: A1 | F22: A1.2 | G22: 288310 | H22: 86400 | I22: stimata | J22: INTERCOMUNALE | K22: NO | L22: Scheda progetto | M22: 2018 | S22: 0 | U22: 0 | W22: 0 | Y22: 0 | AA22: 0 | AC22: 1000000 | AE22: 2500000 | AG22: 1500000 | AI22: 0 | AK22: 5000000 | AL22: 0
B23: 14 | C23: POTABILIZZATORE CAMPO POZZI LA DOLCE | D23: NO | E23: A1 | F23: A1.2 | G23: 288310 | H23: 7000 | I23: stimata | J23: MANZIANA | K23: NO | L23: Scheda progetto | M23: 2016 | S23: 0 | U23: 0 | W23: 0 | Y23: 0 | AA23: 0 | AC23: 500000 | AE23: 0 | AG23: 0 | AI23: 0 | AK23: 500000 | AL23: 0
B24: 15 | C24: POTABILIZZATORE CAVE DELLA DOGANELLA | D24: NO | E24: A1 | F24: A1.2 | G24: 288310 | H24: 2000 | I24: stimata | J24: ORIOLO ROMANO | K24: SI | L24: Progetto definitivo | M24: 2016 | S24: 0 | U24: 0 | W24: 15781.57 | Y24: 0 | AA24: 0 | AC24: 500000 | AE24: 0 | AG24: 0 | AI24: 0 | AK24: 500000 | AL24: 0
B25: 16 | C25: POTABILIZZATORE FINOCCHIO | D25: NO | E25: A1 | F25: A1.2 | G25: 288310 | H25: 19100 | I25: stimata | J25: ROMA | K25: NO | L25: Scheda progetto | M25: 2016 | S25: 0 | Y25: 0 | AA25: 0 | AC25: 3000000 | AE25: 0 | AG25: 0 | AI25: 0 | AK25: 3000000 | AL25: 0
B26: 17 | C26: SOSTITUZIONI FONTI FF.SS. - DN150 SU VIA AURELIA | D26: SI | E26: A1 | F26: A1.2 | G26: 288310 | H26: 800 | I26: rilevata | J26: SANTA MARINELLA | K26: NO | L26: Lavori in corso | M26: 2016 | S26: 0 | U26: 27958.61 | W26: 1398.43 | Y26: 0 | AA26: 0 | AC26: 476963.838 | AE26: 0 | AG26: 0 | AI26: 0 | AK26: 476963.838 | AL26: 0
B27: 18 | C27: POTABILIZZATORE FONTANE NUOVE | D27: NO | E27: A1 | F27: A1.2 | G27: 288310 | H27: 2800 | I27: stimata | J27: SANT'ORESTE | K27: SI | L27: Progetto definitivo | M27: 2016 | S27: 0 | U27: 0 | W27: 20653.72 | Y27: 0 | AA27: 0 | AC27: 500000 | AE27: 0 | AG27: 0 | AI27: 0 | AK27: 500000 | AL27: 0
B28: 19 | C28: INTERVENTI RISANAMENTO ACQUEDOTTI ARSIAL - ACQUEDOTTI MALBORGHETTO, MONTE OLIVIERO E PIANSACCOCCIA | D28: NO | E28: A1 | F28: A1.2 | G28: 288310 | H28: 2500 | I28: stimata | J28: TERRITORIO SERVITO DA RETE ARSIAL | K28: NO | L28: Progetto definitivo | M28: 2017 | S28: 0 | U28: 0 | V28: 12584.28 | W28: 0 | X28: 31870.14 | Y28: 0 | Z28: 0 | AA28: 0 | AB28: 0 | AC28: 0 | AD28: 0 | AE28: 0 | AF28: 995085 | AG28: 0 | AI28: 0 | AK28: 0 | AL28: 995085
B29: 20 | C29: INT. DI RISANAMENTO ARSIAL I STRALCIO I LOTTO ACQ.CASACCIA - SANTA BRIGIDA, TRAGLIATELLA E BRANDOSA | D29: SI | E29: A1 | F29: A1.2 | G29: 288310 | H29: 3000 | I29: rilevata | J29: TERRITORIO SERVITO DA RETE ARSIAL | K29: SI | L29: Lavori in corso | M29: 2016 | S29: 0 | U29: 0 | V29: 1113889 | W29: 0 | X29: 2654531 | Y29: 0 | Z29: 2623681 | AA29: 0 | AB29: 0 | AC29: 0 | AD29: 1849134.417 | AE29: 0 | AF29: 0 | AG29: 0 | AI29: 0 | AK29: 0 | AL29: 1849134.417
B30: 21 | C30: INTERVENTI RISANAMENTO ACQUEDOTTI ARSIAL - BONIFICA RETI ACQUEDOTTI MALBORGHETTO, PIANSACCOCCIA, MONTE OLIVIERO, S. MARIA GALERIA, MALVICINO, OLGIATA, CASACCIA S.BRIGIDA, BRANDOSA NEL COMUNE DI ROMA | D30: SI | E30: A1 | F30: A1.2 | G30: 288310 | H30: 4000 | I30: stimata | J30: TERRITORIO SERVITO DA RETE ARSIAL | K30: NO | L30: Scheda progetto | M30: OLTRE 2019 | S30: 0 | U30: 0 | W30: 0 | Y30: 5200000 | AA30: 7800000 | AC30: 0 | AE30: 0 | AG30: 1000000 | AI30: 2000000 | AK30: 3000000 | AL30: 0
B31: 22 | C31: INTERVENTI RISANAMENTO ACQUEDOTTI ARSIAL - BONIFICA RETI ACQUEDOTTO CAMUCCINI | D31: SI | E31: A1 | F31: A1.2 | G31: 288310 | H31: 200 | I31: rilevata | J31: TERRITORIO SERVITO DA RETE ARSIAL | K31: SI | L31: Lavori in corso | M31: 2016 | S31: 0 | U31: 0 | V31: 35510.06 | W31: 0 | X31: 352328.5 | Y31: 0 | Z31: 2369250 | AA31: 0 | AB31: 0 | AC31: 0 | AD31: 1979097.198 | AE31: 0 | AF31: 0 | AG31: 0 | AI31: 0 | AK31: 0 | AL31: 1979097.198
B32: 23 | C32: POTABILIZZATORE TREVIGNANO ROMANO | D32: NO | E32: A1 | F32: A1.2 | G32: 288310 | H32: 8700 | I32: stimata | J32: TREVIGNANO ROMANO | K32: SI | L32: Progetto definitivo | M32: 2016 | S32: 0 | U32: 0 | W32: 366701.4 | Y32: 0 | AA32: 0 | AC32: 500000 | AE32: 0 | AG32: 0 | AI32: 0 | AK32: 500000 | AL32: 0
B33: 24 | C33: POTABILIZZATORE GORGOGLIONE | D33: NO | E33: A1 | F33: A1.2 | G33: 288310 | H33: 2300 | I33: stimata | J33: VEJANO | K33: SI | L33: Progetto definitivo | M33: 2016 | S33: 0 | U33: 0 | W33: 15132.58 | Y33: 0 | AA33: 0 | AC33: 500000 | AE33: 0 | AG33: 0 | AI33: 0 | AK33: 500000 | AL33: 0
B34: 25 | C34: POSA CONDOTTA NASC-LE CORTI-MAPROL - III STRALCIO (LE CORTI - NASC) | D34: NO | E34: A1 | F34: A1.2 | G34: 288310 | H34: 20000 | I34: stimata | J34: VELLETRI | K34: SI | L34: Lavori in corso | M34: 2016 | S34: 0 | U34: 223681.4 | W34: 141459.9 | Y34: 0 | AA34: 0 | AC34: 301897 | AE34: 0 | AG34: 0 | AI34: 0 | AK34: 301897 | AL34: 0
B35: 26 | C35: COLLEGAMENTO NASC, POZZI LE CORTI E MAPROL, RETE IDRICA VELLETRI - IV STRALCIO (DA POZZO MAPROL A RETE DI DISTRIBUZIONE) | D35: NO | E35: A1 | F35: A1.2 | G35: 288310 | H35: 20000 | I35: stimata | J35: VELLETRI | K35: NO | L35: Progetto esecutivo | M35: 2016 | S35: 0 | U35: 21189.38 | W35: 7019.62 | Y35: 0 | AA35: 0 | AC35: 236600 | AE35: 0 | AG35: 0 | AI35: 0 | AK35: 236600 | AL35: 0
B36: 27 | C36: INTERCONNESSIONE NEMI-VELLETRI, VIA DEI GENZANESI (COMPLETAMENTO) VIA POGGI D'ORO | D36: SI | E36: A1 | F36: A1.2 | G36: 288310 | H36: 20000 | I36: stimata | J36: VELLETRI | K36: NO | L36: Progetto esecutivo | M36: 2016 | S36: 0 | Y36: 0 | AA36: 0 | AC36: 336537.5 | AE36: 0 | AG36: 0 | AI36: 0 | AK36: 336537.5 | AL36: 0
B37: 28 | C37: VIA DEL CIGLIOLO | D37: NO | E37: A1 | F37: A1.2 | G37: 288310 | H37: 6400 | I37: stimata | J37: VELLETRI | K37: SI | L37: Lavori in corso | M37: 2016 | S37: 0 | Y37: 0 | AA37: 0 | AC37: 157969 | AE37: 0 | AG37: 0 | AI37: 0 | AK37: 157969 | AL37: 0
B38: 29 | C38: RILANCIO VIA DEI LAGHI A SOLLEVAMENTO FORMELLONZI | D38: NO | E38: A1 | F38: A1.2 | G38: 288310 | H38: 5000 | I38: stimata | J38: VELLETRI | K38: SI | L38: Lavori in corso | M38: 2016 | S38: 0 | Y38: 0 | AA38: 0 | AC38: 97500 | AE38: 0 | AG38: 0 | AI38: 0 | AK38: 97500 | AL38: 0
B39: 30 | C39: POTENZIAMENTO RILANCIO IDRICO "TEVOLA" | D39: NO | E39: A1 | F39: A1.2 | G39: 288310 | H39: 500 | I39: stimata | J39: VELLETRI | K39: NO | L39: Scheda progetto | M39: 2017 | S39: 0 | Y39: 0 | AA39: 0 | AC39: 0 | AE39: 50000 | AG39: 0 | AI39: 0 | AK39: 50000 | AL39: 0
B40: 31 | C40: POTENZIAMENTO RILANCIO IDRICO "ACQUA LUCIA" | D40: NO | E40: A1 | F40: A1.2 | G40: 288310 | H40: 500 | I40: stimata | J40: VELLETRI | K40: NO | L40: Scheda progetto | M40: 2017 | S40: 0 | Y40: 0 | AA40: 0 | AC40: 0 | AE40: 50000 | AG40: 0 | AI40: 0 | AK40: 50000 | AL40: 0
B41: 32 | C41: POSA NUOVA CONDOTTA IN PIAZZA MALAGUTI | D41: NO | E41: A4 | F41: A4.1 | G41: 3600000 | H41: 10 | I41: stimata | J41: ALBANO LAZIALE | K41: NO | L41: Scheda progetto | M41: 2016 | S41: 0 | U41: 0 | W41: 2614.93 | Y41: 0 | AA41: 0 | AC41: 17238 | AE41: 0 | AG41: 0 | AI41: 0 | AK41: 17238 | AL41: 0
B42: 33 | C42: VIA ROMANA (GENZANO) E VIA APPIA ANTICA (ARICCIA) | D42: NO | E42: A4 | F42: A4.1 | G42: 3600000 | H42: 70 | I42: stimata | J42: ARICCIA | K42: SI | L42: Progetto definitivo | M42: 2016 | S42: 0 | Y42: 0 | AA42: 0 | AC42: 223925 | AE42: 0 | AG42: 0 | AI42: 0 | AK42: 223925 | AL42: 0
B43: 34 | C43: POSA NUOVA CONDOTTA SOLLEVAMENTO IDRICO VALLERICCIA (VIA DEI SANTONI) | D43: NO | E43: A4 | F43: A4.1 | G43: 3600000 | H43: 10 | I43: stimata | J43: ARICCIA | K43: NO | L43: Scheda progetto | M43: 2016 | S43: 0 | Y43: 0 | AA43: 0 | AC43: 12675 | AE43: 0 | AG43: 0 | AI43: 0 | AK43: 12675 | AL43: 0
B44: 35 | C44: RETE IDRICA CONSORZIO VALLE IORO | D44: SI | E44: A4 | F44: A4.1 | G44: 3600000 | H44: 430 | I44: rilevata | J44: CASTELNUOVO DI PORTO | K44: NO | L44: Scheda progetto | M44: 2017 | S44: 0 | U44: 0 | W44: 4529.14 | Y44: 1040000 | AA44: 0 | AC44: 0 | AE44: 1040000 | AG44: 0 | AI44: 0 | AK44: 1040000 | AL44: 0
B45: 36 | C45: ADDUTTRICE BELVEDERE - SASSETE | D45: NO | E45: A4 | F45: A4.1 | G45: 3600000 | H45: 13000 | I45: stimata | J45: FIANO ROMANO | K45: NO | L45: Scheda progetto | M45: 2018 | S45: 0 | U45: 0 | W45: 0 | Y45: 0 | AA45: 0 | AC45: 0 | AE45: 0 | AG45: 600000 | AI45: 0 | AK45: 600000 | AL45: 0
B46: 37 | C46: ALIMENTATRICE AL SERBATOIO DI CAPODIMONTE DALL’ACQUEDOTTO DEL PESCHIERA DESTRO | D46: SI | E46: A4 | F46: A4.1 | G46: 3600000 | H46: 13000 | I46: stimata | J46: FIANO ROMANO | K46: SI | L46: Lavori in corso | M46: 2016 | S46: 0 | U46: 622598.4 | W46: 882553.8 | Y46: 0 | AA46: 0 | AC46: 1130028.25 | AE46: 0 | AG46: 0 | AI46: 0 | AK46: 1130028.25 | AL46: 0
B47: 38 | C47: COMPLETAMENTO ADDUTTRICE PONTE GALERIA - FIUMICINO | D47: SI | E47: A4 | F47: A4.1 | G47: 3600000 | H47: 50000 | I47: rilevata | J47: FIUMICINO | K47: NO | L47: Lavori in corso | M47: 2018 | S47: 0 | U47: 15840.34 | W47: 57072.76 | Y47: 1256775 | AA47: 0 | AC47: 0 | AE47: 1491262.5 | AG47: 1491262.5 | AI47: 0 | AK47: 2982525 | AL47: 0
B48: 39 | C48: LAVORI DI REALIZZAZIONE DI UN NUOVO ACQUEDOTTO IN LOCALITÀ SAN PIETRO E SOSTITUZIONE TUBAZIONE IN VIA LUIGI PETROSELLI | D48: NO | E48: A4 | F48: A4.1 | G48: 3600000 | H48: 150 | I48: stimata | J48: GENAZZANO | K48: NO | L48: Scheda progetto | M48: 2017 | S48: 0 | U48: 0 | W48: 0 | Y48: 0 | AA48: 0 | AC48: 0 | AE48: 448500 | AG48: 0 | AI48: 0 | AK48: 448500 | AL48: 0
B49: 40 | C49: POSA NUOVA CONDOTTA PER COLLEGAMENTO DON STURZO - C.I. LA VILLA | D49: NO | E49: A4 | F49: A4.1 | G49: 3600000 | H49: 50 | I49: stimata | J49: GENZANO DI ROMA | K49: NO | L49: Scheda progetto | M49: 2016 | S49: 0 | U49: 0 | W49: 0 | Y49: 0 | AA49: 0 | AC49: 148720 | AE49: 0 | AG49: 0 | AI49: 0 | AK49: 148720 | AL49: 0
B50: 41 | C50: REALIZZAZIONE CONDOTTA IDRICA A SERVIZIO DELL’AREA P.I.P. IN LOC. BORGHETTO, VIA VILLA SENNI (S.P. 85/B) | D50: NO | E50: A4 | F50: A4.1 | G50: 3600000 | H50: 60 | I50: stimata | J50: GROTTAFERRATA | K50: NO | L50: Progetto esecutivo | M50: 2016 | S50: 0 | Y50: 0 | AA50: 0 | AC50: 195000 | AE50: 0 | AG50: 0 | AI50: 0 | AK50: 195000 | AL50: 0
B51: 42 | C51: ADDUTTRICE E ALIMENTATRICE IDRICA ALBUCCIONE | D51: SI | E51: A4 | F51: A4.1 | G51: 3600000 | H51: 14000 | I51: rilevata | J51: GUIDONIA MONTECELIO | K51: SI | L51: Lavori in corso | M51: 2017 | S51: 0 | U51: 927.96 | W51: 60294.6 | Y51: 2600000 | AA51: 1309750 | AC51: 2000000 | AE51: 1138666.453 | AG51: 0 | AI51: 0 | AK51: 3138666.453 | AL51: 0
B52: 43 | C52: ALIMENTATRICE IDRICA LOCALITÀ CARCIBOVE | D52: SI | E52: A4 | F52: A4.1 | G52: 3600000 | H52: 1900 | I52: rilevata | J52: GUIDONIA MONTECELIO | K52: SI | L52: Progetto esecutivo | M52: 2016 | S52: 0 | U52: 361.68 | W52: 17315.88 | Y52: 497900 | AA52: 0 | AC52: 1420770 | AE52: 0 | AG52: 0 | AI52: 0 | AK52: 1420770 | AL52: 0
B53: 44 | C53: ACQUEDOTTO DALLA SORGENTE DEL PERTUSO ALL’IMPIANTO DI SOLLEVAMENTO DEL CERASO – I LOTTO – TRATTO DALLA GALLERIA DI COLLE DRUNI AL COLLEGAMENTO CON LA CONDOTTA DN 600 ESISTENTE | D53: SI | E53: A4 | F53: A4.1 | G53: 3600000 | H53: 115200 | I53: rilevata | J53: INTERCOMUNALE | K53: NO | L53: Progetto definitivo | M53: OLTRE 2019 | S53: 0 | U53: 96641.01 | W53: 113313.7 | Y53: 3900000 | AA53: 3900000 | AC53: 0 | AE53: 1500000 | AG53: 3000000 | AI53: 3000000 | AK53: 7500000 | AL53: 0
B54: 45 | C54: REALIZZAZIONE IMPIANTO BOOSTER SULL’ADDUTTRICE OLGIATA - CIVITAVECCHIA | D54: NO | E54: A4 | F54: A4.1 | G54: 3600000 | H54: 30000 | I54: rilevata | J54: INTERCOMUNALE | K54: NO | L54: Scheda progetto | M54: 2019 | S54: 0 | U54: 0 | W54: 0 | Y54: 0 | AA54: 0 | AC54: 0 | AE54: 0 | AG54: 1000000 | AI54: 1000000 | AK54: 2000000 | AL54: 0
B55: 46 | C55: ALIMENTAZIONE IDRICA NUOVO OSPEDALE DEI CASTELLI ROMANI | D55: NO | E55: A4 | F55: A4.1 | G55: 3600000 | H55: 2500 | I55: stimata | J55: INTERCOMUNALE | K55: NO | L55: Progetto preliminare | M55: 2018 | S55: 0 | U55: 0 | W55: 129028.8 | Y55: 0 | AA55: 0 | AC55: 0 | AE55: 2000000 | AG55: 437500 | AI55: 0 | AK55: 2437500 | AL55: 0
B56: 47 | C56: ADDUZIONE SERBATOIO MACCHIA MICCIA - MARCELLINA | D56: NO | E56: A4 | F56: A4.1 | G56: 3600000 | H56: 50 | I56: stimata | J56: MARCELLINA | K56: NO | L56: Scheda progetto | M56: 2016 | S56: 0 | Y56: 0 | AA56: 0 | AC56: 160160 | AE56: 0 | AG56: 0 | AI56: 0 | AK56: 160160 | AL56: 0
B57: 48 | C57: POSA NUOVA CONDOTTA SU VIA CAVE DI PEPERINO | D57: NO | E57: A4 | F57: A4.1 | G57: 3600000 | H57: 10 | I57: stimata | J57: MARINO | K57: NO | L57: Scheda progetto | M57: 2016 | S57: 0 | Y57: 0 | AA57: 0 | AC57: 18962 | AE57: 0 | AG57: 0 | AI57: 0 | AK57: 18962 | AL57: 0
B58: 49 | C58: COLLEGAMENTO A CAPPUCCINI | D58: NO | E58: A4 | F58: A4.1 | G58: 3600000 | H58: 40000 | I58: rilevata | J58: MONTEROTONDO | K58: NO | L58: Scheda progetto | M58: 2018 | S58: 0 | Y58: 0 | AA58: 0 | AC58: 0 | AE58: 200000 | AG58: 254315 | AI58: 0 | AK58: 454315 | AL58: 0
B59: 50 | C59: ALIMENTATRICE DN 800 DA OSTIA ANTICA AD OSTIA | D59: SI | E59: A4 | F59: A4.1 | G59: 3600000 | H59: 100000 | I59: stimata | J59: Roma_13-ex18 | K59: NO | L59: Progetto esecutivo | M59: OLTRE 2019 | S59: 0 | U59: 849.19 | W59: 130.72 | Y59: 0 | AA59: 780000 | AC59: 0 | AE59: 0 | AG59: 0 | AI59: 500000 | AK59: 500000 | AL59: 0
B60: 51 | C60: COMPLETAMENTO DEL RADDOPPIO DELL’ADDUTTRICE DN 1600 CASTELL’ARCIONE – SALONE DAL NODO CAPANNACCE AL NODO SALONE | D60: SI | E60: A4 | F60: A4.1 | G60: 3600000 | H60: 500000 | I60: stimata | J60: Roma_13-ex18 | K60: SI | L60: Lavori in corso | M60: 2018 | S60: 0 | U60: 4469.64 | W60: 139522.3 | Y60: 2600000 | AA60: 1780788.516 | AC60: 3000000 | AE60: 3000000 | AG60: 720788.516 | AI60: 0 | AK60: 6720788.516 | AL60: 0
B61: 52 | C61: ADDUTTRICE OTTAVIA - TRIONFALE - NODO AURELIO (I LOTTO AL NODO TRIONFALE) | D61: NO | E61: A4 | F61: A4.1 | G61: 3600000 | H61: 150000 | I61: stimata | J61: Roma_13-ex18 | K61: NO | L61: Progetto preliminare | M61: OLTRE 2019 | S61: 0 | U61: 1895.6 | W61: 0 | Y61: 0 | AA61: 0 | AC61: 0 | AE61: 0 | AG61: 500000 | AI61: 2500000 | AK61: 3000000 | AL61: 0
B62: 53 | C62: COMPLETAMENTO DN 500 ALIMENTATRICE PRIMA PORTA | D62: SI | E62: A4 | F62: A4.1 | G62: 3600000 | H62: 15000 | I62: stimata | J62: Roma_13-ex18 | K62: SI | L62: Lavori in corso | M62: 2016 | S62: 0 | U62: 2802.33 | W62: 499666.8 | Y62: 0 | AA62: 0 | AC62: 849617.197 | AE62: 0 | AG62: 0 | AI62: 0 | AK62: 849617.197 | AL62: 0
B63: 54 | C63: ADDUTTRICE DN800 - DAL C.I. AURELIO AL C.I. P.TE GALERIA | D63: SI | E63: A4 | F63: A4.1 | G63: 3600000 | H63: 130000 | I63: stimata | J63: Roma_13-ex18 | K63: NO | L63: Scheda progetto | M63: OLTRE 2019 | S63: 0 | Y63: 2600000 | AA63: 2600000 | AC63: 0 | AE63: 130000 | AG63: 2500000 | AI63: 2500000 | AK63: 5130000 | AL63: 0
B64: 55 | C64: REALIZZAZIONE DN 700 DAL CENTRO IDRICO AURELIO | D64: NO | E64: A4 | F64: A4.1 | G64: 3600000 | H64: 10000 | I64: stimata | J64: Roma_13-ex18 | K64: NO | L64: Progetto preliminare | M64: OLTRE 2019 | S64: 0 | U64: 0 | W64: 0 | Y64: 0 | AA64: 0 | AC64: 0 | AE64: 0 | AG64: 0 | AI64: 1000000 | AK64: 1000000 | AL64: 0
B65: 56 | C65: ALIMENTATRICE ZONA IDRICA S1B - VIA DELLA STORTA | D65: NO | E65: A4 | F65: A4.1 | G65: 3600000 | H65: 500 | I65: stimata | J65: Roma_13-ex18 | K65: NO | L65: Progetto preliminare | M65: 2019 | S65: 0 | U65: 2352 | W65: 16315.79 | Y65: 0 | AA65: 0 | AC65: 0 | AE65: 0 | AG65: 0 | AI65: 811688 | AK65: 811688 | AL65: 0
B66: 57 | C66: NUOVA ADDUTTRICE BORGO LOTTI-FALCOGNANA NEL COMUNE DI ROMA | D66: NO | E66: A4 | F66: A4.1 | G66: 3600000 | H66: 1000 | I66: stimata | J66: Roma_13-ex18 | K66: NO | L66: Progetto preliminare | M66: 2018 | S66: 0 | U66: 9596.98 | W66: 80.66 | Y66: 0 | AA66: 0 | AC66: 0 | AE66: 0 | AG66: 429000 | AI66: 0 | AK66: 429000 | AL66: 0
B67: 58 | C67: ALIMENTATRICE PONTE DI NONA | D67: NO | E67: A4 | F67: A4.1 | G67: 3600000 | H67: 15000 | I67: stimata | J67: Roma_13-ex18 | K67: NO | L67: Scheda progetto | M67: 2018 | S67: 0 | U67: 28522.65 | W67: 16713.36 | Y67: 0 | AA67: 0 | AC67: 0 | AE67: 1500000 | AG67: 645000 | AI67: 0 | AK67: 2145000 | AL67: 0
B68: 59 | C68: RIPRISTINO FUNZIONALITÀ SOTTOPASSO SIFONI DELL’ACQUA MARCIA | D68: NO | E68: A4 | F68: A4.1 | G68: 3600000 | J68: Roma_13-ex18 | K68: NO | L68: Progetto preliminare | M68: 2019 | S68: 0 | U68: 0 | W68: 80.66 | Y68: 0 | AA68: 0 | AC68: 0 | AE68: 0 | AG68: 500000 | AI68: 412600 | AK68: 912600 | AL68: 0
B69: 60 | C69: POSA CONDOTTA COLLEGAMENTO SERBATOI S.ANNA E PALO DI FERRO - SANT'ORESTE | D69: NO | E69: A4 | F69: A4.1 | G69: 3600000 | H69: 10 | I69: stimata | J69: SANT'ORESTE | K69: NO | L69: Scheda progetto | M69: 2016 | S69: 0 | Y69: 0 | AA69: 0 | AC69: 25480 | AE69: 0 | AG69: 0 | AI69: 0 | AK69: 25480 | AL69: 0
B70: 61 | C70: CONDOTTA DI COLLEGAMENTO SERB. TENNE NUOVE - SORG. FORMA FOCERALE | D70: NO | E70: A4 | F70: A4.1 | G70: 3600000 | H70: 6000 | I70: stimata | J70: SUBIACO | K70: NO | L70: Scheda progetto | M70: 2016 | S70: 0 | U70: 0 | W70: 0 | Y70: 0 | AA70: 0 | AC70: 200000 | AE70: 0 | AG70: 0 | AI70: 0 | AK70: 200000 | AL70: 0
B71: 62 | C71: PREDISPOSIZIONE DI UN COLLEGAMENTO TRA IL I E II ACQUEDOTTO A VALLE DELL’EDIFICIO DI LICENZA E REALIZZAZIONE DI UNO SCARICO DN 500 SU PONTE TUBO | D71: NO | E71: A4 | F71: A4.1 | G71: 3600000 | H71: 800000 | I71: stimata | J71: TERRITORIO SERVITO DA ACQ. MARCIO | K71: NO | L71: Scheda progetto | M71: 2016 | S71: 0 | U71: 0 | W71: 0 | Y71: 0 | AA71: 0 | AC71: 104000 | AE71: 0 | AG71: 0 | AI71: 0 | AK71: 104000 | AL71: 0
B72: 63 | C72: REALIZZAZIONE BY-PASS DN 600 I ACQUEDOTTO IN LOCALITÀ FRATTOCCE | D72: NO | E72: A4 | F72: A4.1 | G72: 3600000 | H72: 800000 | I72: stimata | J72: TERRITORIO SERVITO DA ACQ. MARCIO | K72: NO | L72: Scheda progetto | M72: 2016 | S72: 0 | U72: 0 | W72: 0 | Y72: 0 | AA72: 0 | AC72: 84500 | AE72: 0 | AG72: 0 | AI72: 0 | AK72: 84500 | AL72: 0
B73: 64 | C73: MESSA IN SICUREZZA ACQUEDOTTO PESCHIERA | D73: NO | E73: A4 | F73: A4.1 | G73: 3600000 | H73: 2000000 | I73: stimata | J73: TERRITORIO SERVITO DA ACQ. PESCHIERA | K73: NO | L73: Scheda progetto | M73: OLTRE 2019 | S73: 0 | U73: 127751.6 | W73: 36504.47 | Y73: 0 | AA73: 0 | AC73: 0 | AE73: 0 | AG73: 0 | AI73: 10000000 | AK73: 10000000 | AL73: 0
B74: 65 | C74: CONDOTTA DN 600 DA CAVE A COLLE S.ANGELO (VALMONTONE) | D74: SI | E74: A4 | F74: A4.1 | G74: 3600000 | H74: 100000 | I74: stimata | J74: TERRITORIO SERVITO DA ACQ. SIMBRIVIO | K74: NO | L74: Scheda progetto | M74: OLTRE 2019 | S74: 0 | U74: 361.68 | W74: 0 | Y74: 0 | AA74: 780000 | AC74: 0 | AE74: 0 | AG74: 1000000 | AI74: 2000000 | AK74: 3000000 | AL74: 0
B75: 66 | C75: CONDOTTA DN 1000/600 DA M.TE CASTELLONE (S.VITO ROMANO) A GENAZZANO | D75: SI | E75: A4 | F75: A4.1 | G75: 3600000 | H75: 100000 | I75: stimata | J75: TERRITORIO SERVITO DA ACQ. SIMBRIVIO | K75: NO | L75: Progetto preliminare | M75: OLTRE 2019 | S75: 0 | U75: 361.68 | W75: 0 | Y75: 0 | AA75: 780000 | AC75: 0 | AE75: 0 | AG75: 1000000 | AI75: 2000000 | AK75: 3000000 | AL75: 0
B76: 67 | C76: CONDOTTA LABICO-VELLETRI (IV LOTTO I COLLI-COLLI ILLIRIO) E COLL. POZZI DOGANELLA (4C) | D76: SI | E76: A4 | F76: A4.1 | G76: 3600000 | H76: 100000 | I76: stimata | J76: TERRITORIO SERVITO DA ACQ. SIMBRIVIO | K76: NO | L76: Scheda progetto | M76: OLTRE 2019 | S76: 0 | U76: 0 | W76: 0 | Y76: 0 | AA76: 390000 | AC76: 0 | AE76: 0 | AG76: 0 | AI76: 1000000 | AK76: =SUM(AC76+AE76+AG76+AI76) -> 1000000 | AL76: =SUM(AD76+AF76+AH76+AJ76) -> 0
B77: 68 | C77: INTERVENTI DI RISANAMENTO DEGLI ACQUEDOTTI ARSIAL (I Stralcio funzionale – II lotto) ACQUEDOTTO MONTE OLIVIERO - CONDOTTA DN 100 DI COMPLETAMENTO | D77: SI | E77: A4 | F77: A4.1 | G77: 3600000 | H77: 1000 | I77: stimata | J77: TERRITORIO SERVITO DA RETE ARSIAL | K77: NO | L77: Progetto definitivo | M77: 2017 | S77: 0 | U77: 0 | V77: 476.09 | W77: 0 | X77: 3549.77 | Y77: 0 | Z77: 520000 | AA77: 0 | AB77: 0 | AC77: 0 | AD77: 0 | AE77: 0 | AF77: 780585 | AG77: 0 | AI77: 0 | AK77: 0 | AL77: 780585
B78: 69 | C78: CONDOTTA PER L'ALIMENTAZIONE IDRICA DI VILLAGGIO ADRIANO - TIVOLI | D78: SI | E78: A4 | F78: A4.1 | G78: 3600000 | H78: 12300 | I78: stimata | J78: TIVOLI | K78: SI | L78: Lavori in corso | M78: 2016 | S78: 0 | U78: 350316.6 | W78: 1906448 | Y78: 0 | AA78: 0 | AC78: 159279.731 | AE78: 0 | AG78: 0 | AI78: 0 | AK78: 159279.731 | AL78: 0
B79: 70 | C79: POSA NUOVA CONDOTTA E SPOSTAMENTO PRESE SU VIA ARIANA - VIA DEI CASTAGNOLI - VELLETRI | D79: NO | E79: A4 | F79: A4.1 | G79: 3600000 | H79: 30 | I79: stimata | J79: VELLETRI | K79: NO | L79: Scheda progetto | M79: 2016 | S79: 0 | Y79: 0 | AA79: 0 | AC79: 87880 | AE79: 0 | AG79: 0 | AI79: 0 | AK79: 87880 | AL79: 0
B80: 71 | C80: NUOVA PREMENTE SFORZA CESARINI | D80: NO | E80: A4 | F80: A4.2 | G80: 3600000 | H80: 5000 | I80: stimata | J80: CASTEL GANDOLFO | K80: NO | L80: Scheda progetto | M80: 2018 | S80: 0 | U80: 0 | W80: 0 | Y80: 0 | AA80: 0 | AC80: 0 | AE80: 0 | AG80: 1000000 | AI80: 0 | AK80: 1000000 | AL80: 0
B81: 72 | C81: BONIFICA CONDOTTA DI DERIVAZIONE DALL’ACQUEDOTTO PESCHIERA (FINESTRA XXIX) VERSO IL COMUNE DI RIANO | D81: NO | E81: A4 | F81: A4.2 | G81: 3600000 | H81: 9500 | I81: rilevata | J81: CASTELNUOVO DI PORTO | K81: NO | L81: Progetto definitvo | M81: 2018 | S81: 0 | Y81: 0 | AA81: 0 | AC81: 0 | AE81: 300000 | AG81: 543375 | AI81: 0 | AK81: 843375 | AL81: 0
B82: 73 | C82: RISTRUTTURAZIONE E MESSA IN SICUREZZA CENTRO IDRICO "BUNKER" FRASCATI | D82: NO | E82: A4 | F82: A4.2 | G82: 3600000 | H82: 13900 | I82: rilevata | J82: FRASCATI | K82: NO | L82: Progetto definitivo | M82: 2018 | S82: 0 | U82: 0 | W82: 0 | Y82: 0 | AA82: 0 | AC82: 0 | AE82: 1973750 | AG82: 1000000 | AI82: 0 | AK82: 2973750 | AL82: 0
B83: 74 | C83: RISTRUTTURAZIONE E MESSA IN SICUREZZA CENTRO IDRICO "ROMITO" MONTE COMPATRI | D83: NO | E83: A4 | F83: A4.2 | G83: 3600000 | H83: 10000 | I83: stimata | J83: MONTECOMPATRI | K83: NO | L83: Progetto preliminare | M83: OLTRE 2019 | S83: 0 | U83: 0 | W83: 0 | Y83: 0 | AA83: 0 | AC83: 0 | AE83: 0 | AG83: 0 | AI83: 500000 | AK83: 500000 | AL83: 0
B84: 75 | C84: MANUTENZIONE CENTRI IDRICI - FUORI ROMA | D84: NO | E84: A4 | F84: A4.2 | G84: 3600000 | H84: 1000000 | I84: stimata | J84: OLTRE ROMA | K84: NO | L84: Scheda progetto | M84: 2019 | S84: 0 | Y84: 0 | AA84: 0 | AC84: 2500000 | AE84: 2500000 | AG84: 2500000 | AI84: 2500000 | AK84: 10000000 | AL84: 0
B85: 76 | C85: RISTRUTTURAZIONE E MESSA IN SICUREZZA CENTRO IDRICO "CALCARA"ROCCA PRIORA | D85: NO | E85: A4 | F85: A4.2 | G85: 3600000 | H85: 10000 | I85: stimata | J85: ROCCA PRIORA | K85: NO | L85: Progetto preliminare | M85: 2018 | S85: 0 | U85: 0 | W85: 0 | Y85: 0 | AA85: 0 | AC85: 0 | AE85: 750000 | AG85: 634500 | AI85: 0 | AK85: 1384500 | AL85: 0
B86: 77 | C86: INTERVENTI DI RISANAMENTO E RISTRUTTURAZIONE CENTRO IDRICO MONTE MARIO | D86: NO | E86: A4 | F86: A4.2 | G86: 3600000 | H86: 1000000 | I86: stimata | J86: ROMA | K86: NO | L86: Scheda progetto | M86: 2018 | S86: 0 | Y86: 0 | AA86: 0 | AC86: 0 | AE86: 1500000 | AG86: 1500000 | AI86: 0 | AK86: 3000000 | AL86: 0
B87: 78 | C87: INTERVENTI DI RISANAMENTO E RISTRUTTURAZIONE CENTRO IDRICO CECCHINA | D87: NO | E87: A4 | F87: A4.2 | G87: 3600000 | H87: 200000 | I87: stimata | J87: ROMA | K87: NO | L87: Scheda progetto | M87: 2017 | S87: 0 | Y87: 0 | AA87: 0 | AC87: 0 | AE87: 1000000 | AG87: 0 | AI87: 0 | AK87: 1000000 | AL87: 0
B88: 79 | C88: POTENZIAMENTO IMPIANTO TRATTAMENTO GROTTAROSSA | D88: NO | E88: A4 | F88: A4.2 | G88: 3600000 | H88: 100000 | I88: stimata | J88: ROMA | K88: NO | L88: Scheda progetto | M88: 2017 | S88: 0 | U88: 0 | Y88: 0 | AA88: 0 | AC88: 0 | AE88: 1000000 | AG88: 0 | AI88: 0 | AK88: 1000000 | AL88: 0
B89: 80 | C89: MANUTENZIONE CENTRI IDRICI - ROMA | D89: NO | E89: A4 | F89: A4.2 | G89: 3600000 | H89: 2600000 | I89: stimata | J89: ROMA | K89: NO | L89: Scheda progetto | M89: 2019 | S89: 0 | Y89: 0 | AA89: 0 | AC89: 2000000 | AE89: 2000000 | AG89: 2000000 | AI89: 2000000 | AK89: 8000000 | AL89: 0
B90: 81 | C90: BONIFICA PROGRAMMATA SISTEMA ACQUEDOTTO MARCIO | D90: NO | E90: A4 | F90: A4.2 | G90: 3600000 | H90: 800000 | I90: stimata | J90: TERRITORIO SERVITO DA ACQ. MARCIO | K90: NO | L90: Scheda progetto | M90: OLTRE 2019 | S90: 0 | U90: 0 | W90: 0 | Y90: 0 | AA90: 0 | AC90: 0 | AE90: 0 | AG90: 0 | AI90: 5000000 | AK90: 5000000 | AL90: 0
B91: 82 | C91: INTERVENTI DI RISANAMENTO DELLA GALLERIA COLLETTRICE DELLE SORGENTI DEL PESCHIERA | D91: SI | E91: A4 | F91: A4.2 | G91: 3600000 | H91: 2000000 | I91: stimata | J91: TERRITORIO SERVITO DA ACQ. PESCHIERA | K91: SI | L91: Scheda progetto | M91: 2017 | S91: 0 | U91: 12446.09 | W91: 2701.64 | Y91: 2600000 | AA91: 775287.5 | AC91: 2692666.128 | AE91: 2500000 | AG91: 0 | AI91: 0 | AK91: 5192666.128 | AL91: 0
B92: 83 | C92: MANUTENZIONE CENTRALE IDRICA DELLE SORGENTI DI PESCHIERA | D92: NO | E92: A4 | F92: A4.2 | G92: 3600000 | H92: 2000000 | I92: stimata | J92: TERRITORIO SERVITO DA ACQ. PESCHIERA | K92: SI | L92: Progetto definitivo | M92: 2016 | S92: 0 | Y92: 0 | AA92: 0 | AC92: 400000 | AE92: 0 | AG92: 0 | AI92: 0 | AK92: 400000 | AL92: 0
B93: 84 | C93: BONIFICA CONDOTTA IDRICA TRATTA 49 SIMBRIVIO | D93: NO | E93: A4 | F93: A4.2 | G93: 3600000 | H93: 100000 | I93: stimata | J93: TERRITORIO SERVITO DA ACQ. SIMBRIVIO | K93: NO | L93: Scheda progetto | M93: 2019 | S93: 0 | Y93: 0 | AA93: 0 | AC93: 0 | AE93: 0 | AG93: 0 | AI93: 633750 | AK93: 633750 | AL93: 0
B94: 85 | C94: BONIFICA CONDOTTE: VECCHIO ACQUEDOTTO SIMBRIVIO CASTELLI - TRATTA 29; NUOVO ACQUEDOTTO SIMBRIVIO CASTELLI - TRATTE: 199 E 201 | D94: NO | E94: A4 | F94: A4.2 | G94: 3600000 | H94: 100000 | I94: stimata | J94: TERRITORIO SERVITO DA ACQ. SIMBRIVIO | K94: NO | L94: Scheda progetto | M94: 2017 | S94: 0 | Y94: 0 | AA94: 0 | AC94: 500000 | AE94: 1190000 | AG94: 0 | AI94: 0 | AK94: 1690000 | AL94: 0
B95: 86 | C95: BONIFICA E POTENZIAMENTO ALIMENTATRICE IDRICA LOCALITA' RADICATA | D95: NO | E95: A4 | F95: A4.2 | G95: 3600000 | H95: 100 | I95: stimata | J95: TOLFA | K95: NO | L95: Scheda progetto | M95: 2016 | S95: 0 | Y95: 0 | AA95: 0 | AC95: 250000 | AE95: 0 | AG95: 0 | AI95: 0 | AK95: 250000 | AL95: 0
B96: 87 | C96: BONIFICA RETE IDRICA COMUNE DI AFFILE | D96: NO | E96: B1 | F96: B1.1 | G96: 3600000 | H96: 60 | I96: stimata | J96: AFFILE | K96: NO | L96: Scheda progetto | M96: 2019 | S96: 0.08 | Y96: 0 | AA96: 0 | AC96: 0 | AE96: 0 | AG96: 0 | AI96: 155975.82 | AK96: 155975.82 | AL96: 0
B97: 88 | C97: BONIFICA RETE IDRICA COMUNE DI ALBANO LAZIALE | D97: NO | E97: B1 | F97: B1.1 | G97: 3600000 | H97: 180 | I97: stimata | J97: ALBANO LAZIALE | K97: NO | L97: Scheda progetto | M97: 2019 | S97: 0.08 | Y97: 0 | AA97: 0 | AC97: 0 | AE97: 0 | AG97: 0 | AI97: 500000 | AK97: 500000 | AL97: 0
B98: 89 | C98: BONIFICA RETE IDRICA COMUNE DI ARCINAZZO ROMANO | D98: NO | E98: B1 | F98: B1.1 | G98: 3600000 | H98: 80 | I98: stimata | J98: ARCINAZZO ROMANO | K98: NO | L98: Scheda progetto | M98: 2019 | S98: 0.08 | Y98: 0 | AA98: 0 | AC98: 0 | AE98: 0 | AG98: 0 | AI98: 200000 | AK98: 200000 | AL98: 0
B99: 90 | C99: BONIFICA RETE IDRICA COMUNE DI ARICCIA | D99: NO | E99: B1 | F99: B1.1 | G99: 3600000 | H99: 290 | I99: stimata | J99: ARICCIA | K99: NO | L99: Scheda progetto | M99: 2019 | S99: 0.08 | Y99: 0 | AA99: 0 | AC99: 0 | AE99: 0 | AG99: 500000 | AI99: 300000 | AK99: 800000 | AL99: 0
B100: 91 | C100: ALIMENTAZIONE LOCALITÀ TAGLIENTE E CASA COLONNELLA DAL SERBATOIO "LE MACERE" | D100: NO | E100: B1 | F100: B1.1 | G100: 3600000 | H100: 600 | I100: stimata | J100: ARTENA | K100: NO | L100: Scheda progetto | M100: 2018 | S100: 0 | U100: 0 | W100: 1778.49 | Y100: 0 | AA100: 0 | AC100: 0 | AE100: 1000000 | AG100: 462500 | AI100: 0 | AK100: 1462500 | AL100: 0
B101: 92 | C101: BONIFICA RETE IDRICA COMUNE DI BELLEGRA | D101: NO | E101: B1 | F101: B1.1 | G101: 3600000 | H101: 90 | I101: stimata | J101: BELLEGRA | K101: NO | L101: Scheda progetto | M101: 2019 | S101: 0.08 | Y101: 0 | AA101: 0 | AC101: 0 | AE101: 0 | AG101: 0 | AI101: 250000 | AK101: 250000 | AL101: 0
B102: 93 | C102: BONIFICA RETE IDRICA COMUNE DI CAPRANICA PRENESTINA | D102: NO | E102: B1 | F102: B1.1 | G102: 3600000 | H102: 40 | I102: stimata | J102: CAPRANICA PRENESTINA | K102: NO | L102: Scheda progetto | M102: 2018 | S102: 0.08 | Y102: 0 | AA102: 0 | AC102: 0 | AE102: 0 | AG102: 90000 | AI102: 0 | AK102: 90000 | AL102: 0
B103: 94 | C103: BONIFICA RETE IDRICA COMUNE DI CARPINETO ROMANO | D103: NO | E103: B1 | F103: B1.1 | G103: 3600000 | H103: 110 | I103: stimata | J103: CARPINETO ROMANO | K103: NO | L103: Scheda progetto | M103: 2019 | S103: 0.08 | Y103: 0 | AA103: 0 | AC103: 0 | AE103: 0 | AG103: 0 | AI103: 300000 | AK103: 300000 | AL103: 0
B104: 95 | C104: BONIFICA RETE IDRICA COMUNE DI CASAPE | D104: NO | E104: B1 | F104: B1.1 | G104: 3600000 | H104: 60 | I104: stimata | J104: CASAPE | K104: NO | L104: Scheda progetto | M104: 2016 | S104: 0.08 | Y104: 0 | AA104: 0 | AC104: 150000 | AE104: 0 | AG104: 0 | AI104: 0 | AK104: 150000 | AL104: 0
B105: 96 | C105: BONIFICA RETE IDRICA COMUNE DI CASTEL GANDOLFO | D105: NO | E105: B1 | F105: B1.1 | G105: 3600000 | H105: 60 | I105: stimata | J105: CASTEL GANDOLFO | K105: NO | L105: Scheda progetto | M105: 2019 | S105: 0.08 | Y105: 0 | AA105: 0 | AC105: 0 | AE105: 0 | AG105: 0 | AI105: 150000 | AK105: 150000 | AL105: 0
B106: 97 | C106: BONIFICA RETE IDRICA COMUNE DI CASTEL MADAMA | D106: NO | E106: B1 | F106: B1.1 | G106: 3600000 | H106: 100 | I106: stimata | J106: CASTEL MADAMA | K106: NO | L106: Scheda progetto | M106: 2016 | S106: 0.08 | Y106: 0 | AA106: 0 | AC106: 270000 | AE106: 0 | AG106: 0 | AI106: 0 | AK106: 270000 | AL106: 0
B107: 98 | C107: BONIFICA RETE IDRICA COMUNE DI CASTEL SAN PIETRO ROMANO | D107: NO | E107: B1 | F107: B1.1 | G107: 3600000 | H107: 20 | I107: stimata | J107: CASTEL SAN PIETRO ROMANO | K107: NO | L107: Scheda progetto | M107: 2017 | S107: 0.08 | Y107: 0 | AA107: 0 | AC107: 0 | AE107: 50000 | AG107: 0 | AI107: 0 | AK107: 50000 | AL107: 0
B108: 99 | C108: BONIFICA RETE IDRICA COMUNE DI CASTELNUOVO DI PORTO | D108: NO | E108: B1 | F108: B1.1 | G108: 3600000 | H108: 110 | I108: stimata | J108: CASTELNUOVO DI PORTO | K108: NO | L108: Scheda progetto | M108: 2019 | S108: 0.08 | Y108: 0 | AA108: 0 | AC108: 0 | AE108: 0 | AG108: 0 | AI108: 290000 | AK108: 290000 | AL108: 0
B109: 100 | C109: BONIFICA RETE IDRICA COMUNE DI CAVE | D109: NO | E109: B1 | F109: B1.1 | G109: 3600000 | H109: 60 | I109: stimata | J109: CAVE | K109: NO | L109: Scheda progetto | M109: 2016 | S109: 0.08 | Y109: 0 | AA109: 0 | AC109: 150000 | AE109: 0 | AG109: 0 | AI109: 0 | AK109: 150000 | AL109: 0
B110: 101 | C110: BONIFICA RETE IDRICA COMUNE DI CERVARA DI ROMA | D110: NO | E110: B1 | F110: B1.1 | G110: 3600000 | H110: 40 | I110: stimata | J110: CERVARA DI ROMA | K110: NO | L110: Scheda progetto | M110: 2018 | S110: 0.08 | Y110: 0 | AA110: 0 | AC110: 0 | AE110: 0 | AG110: 100000 | AI110: 0 | AK110: 100000 | AL110: 0
B111: 102 | C111: BONIFICA RETE IDRICA COMUNE DI CICILIANO | D111: NO | E111: B1 | F111: B1.1 | G111: 3600000 | H111: 80 | I111: stimata | J111: CICILIANO | K111: NO | L111: Scheda progetto | M111: 2019 | S111: 0.08 | Y111: 0 | AA111: 0 | AC111: 0 | AE111: 0 | AG111: 0 | AI111: 200000 | AK111: 200000 | AL111: 0
B112: 103 | C112: BONIFICA RETE IDRICA COMUNE DI COLONNA | D112: NO | E112: B1 | F112: B1.1 | G112: 3600000 | H112: 50 | I112: stimata | J112: COLONNA | K112: NO | L112: Scheda progetto | M112: 2019 | S112: 0.08 | Y112: 0 | AA112: 0 | AC112: 0 | AE112: 0 | AG112: 0 | AI112: 130000 | AK112: 130000 | AL112: 0
B113: 104 | C113: BONIFICA RETE IDRICA COMUNE DI FIANO ROMANO | D113: NO | E113: B1 | F113: B1.1 | G113: 3600000 | H113: 170 | I113: stimata | J113: FIANO ROMANO | K113: NO | L113: Scheda progetto | M113: 2018 | S113: 0.08 | Y113: 0 | AA113: 0 | AC113: 0 | AE113: 0 | AG113: 460000 | AI113: 0 | AK113: 460000 | AL113: 0
B114: 105 | C114: BONIFICA RETE IDRICA COMUNE DI FONTE NUOVA | D114: NO | E114: B1 | F114: B1.1 | G114: 3600000 | H114: 360 | I114: stimata | J114: FONTENUOVA | K114: NO | L114: Scheda progetto | M114: 2019 | S114: 0.08 | Y114: 0 | AA114: 0 | AC114: 0 | AE114: 0 | AG114: 500000 | AI114: 500000 | AK114: 1000000 | AL114: 0
B115: 106 | C115: BONIFICA RETE IDRICA COMUNE DI FORMELLO | D115: NO | E115: B1 | F115: B1.1 | G115: 3600000 | H115: 110 | I115: stimata | J115: FORMELLO | K115: NO | L115: Scheda progetto | M115: 2019 | S115: 0.08 | Y115: 0 | AA115: 0 | AC115: 0 | AE115: 0 | AG115: 0 | AI115: 300000 | AK115: 300000 | AL115: 0
B116: 107 | C116: BONIFICA RETE IDRICA COMUNE DI FRASCATI | D116: NO | E116: B1 | F116: B1.1 | G116: 3600000 | H116: 180 | I116: stimata | J116: FRASCATI | K116: NO | L116: Scheda progetto | M116: 2019 | S116: 0.08 | Y116: 0 | AA116: 0 | AC116: 0 | AE116: 0 | AG116: 0 | AI116: 500000 | AK116: 500000 | AL116: 0
B117: 108 | C117: BONIFICA RETE IDRICA COMUNE DI GALLICANO NEL LAZIO | D117: NO | E117: B1 | F117: B1.1 | G117: 3600000 | H117: 70 | I117: stimata | J117: GALLICANO NEL LAZIO | K117: NO | L117: Scheda progetto | M117: 2018 | S117: 0.08 | Y117: 0 | AA117: 0 | AC117: 0 | AE117: 0 | AG117: 180000 | AI117: 0 | AK117: 180000 | AL117: 0
B118: 109 | C118: BONIFICA RETE IDRICA COMUNE DI GENAZZANO | D118: NO | E118: B1 | F118: B1.1 | G118: 3600000 | H118: 200 | I118: stimata | J118: GENAZZANO | K118: NO | L118: Scheda progetto | M118: 2017 | S118: 0.08 | Y118: 0 | AA118: 0 | AC118: 350000 | AE118: 210000 | AG118: 0 | AI118: 0 | AK118: 560000 | AL118: 0
B119: 110 | C119: BONIFICA RETE IDRICA COMUNE DI GENZANO DI ROMA | D119: NO | E119: B1 | F119: B1.1 | G119: 3600000 | H119: 220 | I119: stimata | J119: GENZANO DI ROMA | K119: NO | L119: Scheda progetto | M119: 2019 | S119: 0.08 | Y119: 0 | AA119: 0 | AC119: 0 | AE119: 0 | AG119: 300000 | AI119: 300000 | AK119: 600000 | AL119: 0
B120: 111 | C120: BONIFICA RETE IDRICA COMUNE DI GROTTAFERRATA | D120: NO | E120: B1 | F120: B1.1 | G120: 3600000 | H120: 110 | I120: stimata | J120: GROTTAFERRATA | K120: NO | L120: Scheda progetto | M120: 2016 | S120: 0.08 | Y120: 0 | AA120: 0 | AC120: 300000 | AE120: 0 | AG120: 0 | AI120: 0 | AK120: 300000 | AL120: 0
B121: 112 | C121: BONIFICA RETE IDRICA NEL COMUNE DI GUIDONIA MONTECELIO - LOC. ''PICHINI'' | D121: SI | E121: B1 | F121: B1.1 | G121: 3600000 | H121: 2200 | I121: stimata | J121: GUIDONIA MONTECELIO | K121: SI | L121: Lavori in corso | M121: 2016 | S121: 0 | U121: 30875.7 | W121: 587058.5 | Y121: 317850 | AA121: 0 | AC121: 606874.749 | AE121: 0 | AG121: 0 | AI121: 0 | AK121: 606874.749 | AL121: 0
B122: 113 | C122: BONIFICA RETE IDRICA NEL COMUNE DI GUIDONIA MONTECELIO - LOC.''VILLANOVA'' | D122: NO | E122: B1 | F122: B1.1 | G122: 3600000 | H122: 15000 | I122: stimata | J122: GUIDONIA MONTECELIO | K122: NO | L122: Scheda progetto | M122: OLTRE 2019 | S122: 0 | U122: 30875.7 | W122: 587058.5 | Y122: 0 | AA122: 0 | AC122: 0 | AE122: 0 | AG122: 0 | AI122: 500000 | AK122: 500000 | AL122: 0
B123: 114 | C123: BONIFICA RETE IDRICA COMUNE DI GUIDONIA MONTECELIO | D123: NO | E123: B1 | F123: B1.1 | G123: 3600000 | H123: 200 | I123: stimata | J123: GUIDONIA MONTECELIO | K123: NO | L123: Scheda progetto | M123: 2019 | S123: 0.08 | U123: 30875.7 | W123: 587058.5 | Y123: 0 | AA123: 0 | AC123: 0 | AE123: 0 | AG123: 250000 | AI123: 300000 | AK123: 550000 | AL123: 0
B124: 115 | C124: BONIFICHE ALLACCI IDRICI | D124: NO | E124: B1 | F124: B1.1 | G124: 3600000 | H124: 4280 | I124: stimata | J124: INTERCOMUNALE | K124: N.A. | M124: 2019 | S124: 0.08 | Y124: 0 | AA124: 0 | AC124: 3000000 | AE124: 3000000 | AG124: 3000000 | AI124: 3000000 | AK124: 12000000 | AL124: 0
B125: 116 | C125: DEFINIZIONE DISTRETTI IDRICI E RICERCA PERDITE | D125: NO | E125: B1 | F125: B1.1 | G125: 3600000 | H125: 3600000 | I125: stimata | J125: INTERCOMUNALE | K125: N.A. | L125: Lavori in corso | M125: 2019 | S125: 0.08 | Y125: 0 | AA125: 0 | AC125: 1000000 | AE125: 1000000 | AG125: 1000000 | AI125: 1000000 | AK125: 4000000 | AL125: 0
B126: 117 | C126: BONIFICA RETE IDRICA COMUNE DI LANUVIO | D126: NO | E126: B1 | F126: B1.1 | G126: 3600000 | H126: 150 | I126: stimata | J126: LANUVIO | K126: NO | L126: Scheda progetto | M126: 2019 | S126: 0.08 | Y126: 0 | AA126: 0 | AC126: 0 | AE126: 0 | AG126: 200000 | AI126: 200000 | AK126: 400000 | AL126: 0
B127: 118 | C127: BONIFICA RETE IDRICA COMUNE DI LARIANO | D127: NO | E127: B1 | F127: B1.1 | G127: 3600000 | H127: 210 | I127: stimata | J127: LARIANO | K127: NO | L127: Scheda progetto | M127: 2019 | S127: 0.08 | Y127: 0 | AA127: 0 | AC127: 0 | AE127: 0 | AG127: 350000 | AI127: 230000 | AK127: 580000 | AL127: 0
B128: 119 | C128: BONIFICA RETE IDRICA COMUNE DI MARCELLINA | D128: NO | E128: B1 | F128: B1.1 | G128: 3600000 | H128: 290 | I128: stimata | J128: MARCELLINA | K128: NO | L128: Scheda progetto | M128: 2018 | S128: 0.08 | Y128: 0 | AA128: 0 | AC128: 0 | AE128: 400000 | AG128: 400000 | AI128: 0 | AK128: 800000 | AL128: 0
B129: 120 | C129: BONIFICA RETE IDRICA COMUNE DI MARINO | D129: NO | E129: B1 | F129: B1.1 | G129: 3600000 | H129: 220 | I129: stimata | J129: MARINO | K129: NO | L129: Scheda progetto | M129: 2018 | S129: 0.08 | Y129: 0 | AA129: 0 | AC129: 0 | AE129: 300000 | AG129: 300000 | AI129: 0 | AK129: 600000 | AL129: 0
B130: 121 | C130: BONIFICA RETE IDRICA NEL COMUNE DI MENTANA | D130: NO | E130: B1 | F130: B1.1 | G130: 3600000 | H130: 1100 | I130: stimata | J130: MENTANA | K130: NO | L130: Lavori in corso | M130: 2017 | S130: 0 | U130: 24519.45 | W130: 14352.12 | Y130: 0 | AA130: 0 | AC130: 780000 | AE130: 780000 | AG130: 0 | AI130: 0 | AK130: 1560000 | AL130: 0
B131: 122 | C131: BONIFICA RETE IDRICA COMUNE DI MENTANA | D131: NO | E131: B1 | F131: B1.1 | G131: 3600000 | H131: 290 | I131: stimata | J131: MENTANA | K131: NO | L131: Scheda progetto | M131: 2019 | S131: 0.08 | Y131: 0 | AA131: 0 | AC131: 0 | AE131: 0 | AG131: 300000 | AI131: 500000 | AK131: =SUM(AC131+AE131+AG131+AI131) -> 800000 | AL131: =SUM(AD131+AF131+AH131+AJ131) -> 0
B132: 123 | C132: BONIFICA RETE IDRICA COMUNE DI MONTEPORZIO CATONE | D132: NO | E132: B1 | F132: B1.1 | G132: 3600000 | H132: 80 | I132: stimata | J132: MONTE PORZIO CATONE | K132: NO | L132: Scheda progetto | M132: 2019 | S132: 0.08 | Y132: 0 | AA132: 0 | AC132: 0 | AE132: 0 | AG132: 0 | AI132: 200000 | AK132: 200000 | AL132: 0
B133: 124 | C133: BONIFICA RETE IDRICA COMUNE DI MONTECOMPATRI | D133: NO | E133: B1 | F133: B1.1 | G133: 3600000 | H133: 130 | I133: stimata | J133: MONTECOMPATRI | K133: NO | L133: Scheda progetto | M133: 2019 | S133: 0.08 | Y133: 0 | AA133: 0 | AC133: 0 | AE133: 0 | AG133: 0 | AI133: 340000 | AK133: 340000 | AL133: 0
B134: 125 | C134: BONIFICA RETE IDRICA COMUNE DI MONTEROTONDO | D134: NO | E134: B1 | F134: B1.1 | G134: 3600000 | H134: 290 | I134: stimata | J134: MONTEROTONDO | K134: NO | L134: Scheda progetto | M134: 2019 | S134: 0.08 | Y134: 0 | AA134: 0 | AC134: 0 | AE134: 0 | AG134: 0 | AI134: 800000 | AK134: 800000 | AL134: 0
B135: 126 | C135: BONIFICA RETE IDRICA COMUNE DI NEMI | D135: NO | E135: B1 | F135: B1.1 | G135: 3600000 | H135: 90 | I135: stimata | J135: NEMI | K135: NO | L135: Scheda progetto | M135: 2019 | S135: 0.08 | Y135: 0 | AA135: 0 | AC135: 0 | AE135: 0 | AG135: 0 | AI135: 250000 | AK135: 250000 | AL135: 0
B136: 127 | C136: BONIFICA RETE IDRICA COMUNE DI OLEVANO ROMANO | D136: NO | E136: B1 | F136: B1.1 | G136: 3600000 | H136: 110 | I136: stimata | J136: OLEVANO ROMANO | K136: NO | L136: Scheda progetto | M136: 2018 | S136: 0.08 | Y136: 0 | AA136: 0 | AC136: 0 | AE136: 0 | AG136: 300000 | AI136: 0 | AK136: 300000 | AL136: 0
B137: 128 | C137: BONIFICA RETE IDRICA COMUNE DI ORIOLO ROMANO | D137: NO | E137: B1 | F137: B1.1 | G137: 3600000 | H137: 60 | I137: stimata | J137: ORIOLO ROMANO | K137: NO | L137: Scheda progetto | M137: 2018 | S137: 0.08 | Y137: 0 | AA137: 0 | AC137: 0 | AE137: 0 | AG137: 150000 | AI137: 0 | AK137: 150000 | AL137: 0
B138: 129 | C138: BONIFICA RETE IDRICA COMUNE DI PALESTRINA | D138: NO | E138: B1 | F138: B1.1 | G138: 3600000 | H138: 330 | I138: stimata | J138: PALESTRINA | K138: NO | L138: Scheda progetto | M138: 2017 | S138: 0.08 | Y138: 0 | AA138: 0 | AC138: 450000 | AE138: 450000 | AG138: 0 | AI138: 0 | AK138: 900000 | AL138: 0
B139: 130 | C139: BONIFICA RETE IDRICA COMUNE DI PISONIANO | D139: NO | E139: B1 | F139: B1.1 | G139: 3600000 | H139: 40 | I139: stimata | J139: PISONIANO | K139: NO | L139: Scheda progetto | M139: 2019 | S139: 0.08 | Y139: 0 | AA139: 0 | AC139: 0 | AE139: 0 | AG139: 0 | AI139: 100000 | AK139: 100000 | AL139: 0
B140: 131 | C140: BONIFICA RETE IDRICA COMUNE DI POLI | D140: NO | E140: B1 | F140: B1.1 | G140: 3600000 | H140: 90 | I140: stimata | J140: POLI | K140: NO | L140: Scheda progetto | M140: 2019 | S140: 0.08 | Y140: 0 | AA140: 0 | AC140: 0 | AE140: 0 | AG140: 0 | AI140: 250000 | AK140: 250000 | AL140: 0
B141: 132 | C141: BONIFICA RETE IDRICA COMUNE DI ROCCA DI CAVE | D141: NO | E141: B1 | F141: B1.1 | G141: 3600000 | H141: 20 | I141: stimata | J141: ROCCA DI CAVE | K141: NO | L141: Scheda progetto | M141: 2019 | S141: 0.08 | Y141: 0 | AA141: 0 | AC141: 0 | AE141: 0 | AG141: 0 | AI141: 50000 | AK141: 50000 | AL141: 0
B142: 133 | C142: BONIFICA RETE IDRICA COMUNE DI ROCCA DI PAPA | D142: NO | E142: B1 | F142: B1.1 | G142: 3600000 | H142: 180 | I142: stimata | J142: ROCCA DI PAPA | K142: NO | L142: Scheda progetto | M142: 2018 | S142: 0.08 | Y142: 0 | AA142: 0 | AC142: 0 | AE142: 0 | AG142: 500000 | AI142: 0 | AK142: 500000 | AL142: 0
B143: 134 | C143: BONIFICA RETE IDRICA COMUNE DI ROCCA PRIORA | D143: NO | E143: B1 | F143: B1.1 | G143: 3600000 | H143: 180 | I143: stimata | J143: ROCCA PRIORA | K143: NO | L143: Scheda progetto | M143: 2019 | S143: 0.08 | Y143: 0 | AA143: 0 | AC143: 0 | AE143: 0 | AG143: 0 | AI143: 500000 | AK143: 500000 | AL143: 0
B144: 135 | C144: BONIFICA RETE IDRICA COMUNE DI ROCCA SANTO STEFANO | D144: NO | E144: B1 | F144: B1.1 | G144: 3600000 | H144: 60 | I144: stimata | J144: ROCCA SANTO STEFANO | K144: NO | L144: Scheda progetto | M144: 2019 | S144: 0.08 | Y144: 0 | AA144: 0 | AC144: 0 | AE144: 0 | AG144: 0 | AI144: 150000 | AK144: 150000 | AL144: 0
B145: 136 | C145: BONIFICA RETE IDRICA COMUNE DI ROIATE | D145: NO | E145: B1 | F145: B1.1 | G145: 3600000 | H145: 30 | I145: stimata | J145: ROIATE | K145: NO | L145: Scheda progetto | M145: 2016 | S145: 0.08 | Y145: 0 | AA145: 0 | AC145: 70000 | AE145: 0 | AG145: 0 | AI145: 0 | AK145: 70000 | AL145: 0
B146: 137 | C146: BONIFICA RETE IDRICA COMUNE DI ROMA | D146: NO | E146: B1 | F146: B1.1 | G146: 3600000 | H146: 2320 | I146: stimata | J146: ROMA | K146: lavori in corso | M146: 2019 | S146: 0.08 | Y146: 0 | AA146: 0 | AC146: 1500000 | AE146: 1500000 | AG146: 1500000 | AI146: 2000000 | AK146: 6500000 | AL146: 0
B147: 138 | C147: RISTRUTTURAZIONE ACQUEDOTTO RURALE “I PIANI DI OSTIA” – ANELLO A – CBTAR | D147: NO | E147: B1 | F147: B1.1 | G147: 3600000 | H147: 500 | I147: stimata | J147: Roma_13-ex18 | K147: NO | L147: Progetto preliminare | M147: OLTRE 2019 | S147: 0 | U147: 0 | W147: 0 | Y147: 0 | AA147: 0 | AC147: 0 | AE147: 0 | AG147: 0 | AI147: 1500000 | AK147: 1500000 | AL147: 0
B148: 139 | C148: POTENZIAMENTO CONDOTTE IDRICHE NEL COMUNE DI SACROFANO | D148: SI | E148: B1 | F148: B1.1 | G148: 3600000 | H148: 300 | I148: rilevata | J148: SACROFANO | K148: NO | L148: Scheda progetto | M148: 2018 | S148: 0 | U148: 12432.81 | W148: 36069.37 | Y148: 0 | AA148: 650000 | AC148: 0 | AE148: 539955 | AG148: 809932.5 | AI148: 0 | AK148: 1349887.5 | AL148: 0
B149: 140 | C149: BONIFICA RETE IDRICA COMUNE DI SACROFANO | D149: NO | E149: B1 | F149: B1.1 | G149: 3600000 | H149: 90 | I149: stimata | J149: SACROFANO | K149: NO | L149: Scheda progetto | M149: 2016 | S149: 0.08 | Y149: 0 | AA149: 0 | AC149: 250000 | AE149: 0 | AG149: 0 | AI149: 0 | AK149: 250000 | AL149: 0
B150: 141 | C150: BONIFICA RETE IDRICA COMUNE DI SAMBUCI | D150: NO | E150: B1 | F150: B1.1 | G150: 3600000 | H150: 40 | I150: stimata | J150: SAMBUCI | K150: NO | L150: Scheda progetto | M150: 2019 | S150: 0.08 | Y150: 0 | AA150: 0 | AC150: 0 | AE150: 0 | AG150: 0 | AI150: 100000 | AK150: 100000 | AL150: 0
B151: 142 | C151: BONIFICA RETE IDRICA COMUNE DI SAN CESAREO | D151: NO | E151: B1 | F151: B1.1 | G151: 3600000 | H151: 110 | I151: stimata | J151: SAN CESAREO | K151: NO | L151: Scheda progetto | M151: 2019 | S151: 0.08 | Y151: 0 | AA151: 0 | AC151: 0 | AE151: 0 | AG151: 150000 | AI151: 150000 | AK151: 300000 | AL151: 0
B152: 143 | C152: BONIFICA TRATTO IDRICO DI CONDOTTA IN VIA FAUSTINIANA | D152: NO | E152: B1 | F152: B1.1 | G152: 3600000 | H152: 150 | I152: stimata | J152: SAN GREGORIO DA SASSOLA | K152: NO | L152: Scheda progetto | M152: 2016 | S152: 0 | U152: 0 | W152: 0 | Y152: 0 | AA152: 0 | AC152: 300000 | AE152: 0 | AG152: 0 | AI152: 0 | AK152: 300000 | AL152: 0
B153: 144 | C153: BONIFICA RETE IDRICA COMUNE DI SAN POLO DEI CAVALIERI | D153: NO | E153: B1 | F153: B1.1 | G153: 3600000 | H153: 80 | I153: stimata | J153: SAN POLO DEI CAVALIERI | K153: NO | L153: Scheda progetto | M153: 2018 | S153: 0.08 | Y153: 0 | AA153: 0 | AC153: 0 | AE153: 0 | AG153: 220000 | AI153: 0 | AK153: 220000 | AL153: 0
B154: 145 | C154: BONIFICA RETE IDRICA COMUNE DI SAN VITO ROMANO | D154: NO | E154: B1 | F154: B1.1 | G154: 3600000 | H154: 180 | I154: stimata | J154: SAN VITO ROMANO | K154: NO | L154: Scheda progetto | M154: 2019 | S154: 0.08 | Y154: 0 | AA154: 0 | AC154: 0 | AE154: 0 | AG154: 0 | AI154: 500000 | AK154: 500000 | AL154: 0
B155: 146 | C155: BONIFICA RETE IDRICA COMUNE DI SANTA MARINELLA | D155: NO | E155: B1 | F155: B1.1 | G155: 3600000 | H155: 180 | I155: stimata | J155: SANTA MARINELLA | K155: NO | L155: Scheda progetto | M155: 2018 | S155: 0.08 | Y155: 0 | AA155: 0 | AC155: 0 | AE155: 0 | AG155: 500000 | AI155: 0 | AK155: 500000 | AL155: 0
B156: 147 | C156: BONIFICA RETE IDRICA NEL COMUNE DI SANT'ORESTE | D156: NO | E156: B1 | F156: B1.1 | G156: 3600000 | H156: 250 | I156: stimata | J156: SANT'ORESTE | K156: NO | L156: Scheda progetto | M156: 2017 | S156: 0 | U156: 0 | W156: 567.46 | Y156: 0 | AA156: 0 | AC156: 450000 | AE156: 450000 | AG156: 0 | AI156: 0 | AK156: 900000 | AL156: 0
B157: 148 | C157: BONIFICA RETE IDRICA COMUNE DI SANT'ORESTE | D157: NO | E157: B1 | F157: B1.1 | G157: 3600000 | H157: 360 | I157: stimata | J157: SANT'ORESTE | K157: NO | L157: Scheda progetto | M157: 2019 | S157: 0.08 | Y157: 0 | AA157: 0 | AC157: 0 | AE157: 0 | AG157: 500000 | AI157: 500000 | AK157: 1000000 | AL157: 0
B158: 149 | C158: BONIFICA RETE IDRICA COMUNE DI SARACINESCO | D158: NO | E158: B1 | F158: B1.1 | G158: 3600000 | H158: 20 | I158: stimata | J158: SARACINESCO | K158: NO | L158: Scheda progetto | M158: 2019 | S158: 0.08 | Y158: 0 | AA158: 0 | AC158: 0 | AE158: 0 | AG158: 0 | AI158: 50000 | AK158: 50000 | AL158: 0
B159: 150 | C159: BONIFICA RETE IDRICA COMUNE DI SEGNI | D159: NO | E159: B1 | F159: B1.1 | G159: 3600000 | H159: 80 | I159: stimata | J159: SEGNI | K159: NO | L159: Scheda progetto | M159: 2016 | S159: 0.08 | Y159: 0 | AA159: 0 | AC159: 220000 | AE159: 0 | AG159: 0 | AI159: 0 | AK159: 220000 | AL159: 0
B160: 151 | C160: BONIFICA RETE IDRICA ''TIVOLI TERME'' | D160: SI | E160: B1 | F160: B1.1 | G160: 3600000 | H160: 9500 | I160: stimata | J160: TIVOLI | K160: SI | L160: Lavori in corso | M160: 2019 | S160: 0 | U160: 572.54 | W160: 0 | Y160: 1950000 | AA160: 205400 | AC160: 0 | AE160: 500000 | AG160: 1500000 | AI160: 415400 | AK160: 2415400 | AL160: 0
B161: 152 | C161: BONIFICA RETE IDRICA VILLA ADRIANA | D161: SI | E161: B1 | F161: B1.1 | G161: 3600000 | H161: 3000 | I161: stimata | J161: TIVOLI | K161: NO | L161: Lavori in corso | M161: 2019 | S161: 0 | U161: 361.68 | W161: 26627.6 | Y161: 650000 | AA161: 1560000 | AC161: 0 | AE161: 1000000 | AG161: 1500000 | AI161: 762496 | AK161: 3262496 | AL161: 0
B162: 153 | C162: BONIFICA RETE IDRICA COMUNE DI TORRITA TIBERINA | D162: NO | E162: B1 | F162: B1.1 | G162: 3600000 | H162: 50 | I162: stimata | J162: TORRITA TIBERINA | K162: NO | L162: Scheda progetto | M162: 2019 | S162: 0.08 | Y162: 0 | AA162: 0 | AC162: 0 | AE162: 0 | AG162: 0 | AI162: 130000 | AK162: 130000 | AL162: 0
B163: 154 | C163: BONIFICA RETE IDRICA COMUNE DI TREVIGNANO ROMANO | D163: NO | E163: B1 | F163: B1.1 | G163: 3600000 | H163: 90 | I163: stimata | J163: TREVIGNANO ROMANO | K163: NO | L163: Scheda progetto | M163: 2019 | S163: 0.08 | Y163: 0 | AA163: 0 | AC163: 0 | AE163: 0 | AG163: 0 | AI163: 250000 | AK163: 250000 | AL163: 0
B164: 155 | C164: BONIFICA RETE IDRICA COMUNE DI VEJANO | D164: NO | E164: B1 | F164: B1.1 | G164: 3600000 | H164: 30 | I164: stimata | J164: VEJANO | K164: NO | L164: Scheda progetto | M164: 2019 | S164: 0.08 | Y164: 0 | AA164: 0 | AC164: 0 | AE164: 0 | AG164: 0 | AI164: 70000 | AK164: 70000 | AL164: 0
B165: 156 | C165: BONIFICA RETE IDRICA COMUNE DI VELLETRI | D165: NO | E165: B1 | F165: B1.1 | G165: 3600000 | H165: 560 | I165: stimata | J165: VELLETRI | K165: NO | L165: Scheda progetto | M165: 2017 | S165: 0.08 | Y165: 0 | AA165: 0 | AC165: 780000 | AE165: 780000 | AG165: 0 | AI165: 0 | AK165: 1560000 | AL165: 0
B166: 157 | C166: BONIFICA RETE IDRICA COMUNE DI VICOVARO | D166: NO | E166: B1 | F166: B1.1 | G166: 3600000 | H166: 40 | I166: stimata | J166: VICOVARO | K166: NO | L166: Scheda progetto | M166: 2016 | S166: 0.08 | Y166: 0 | AA166: 0 | AC166: 100000 | AE166: 0 | AG166: 0 | AI166: 0 | AK166: 100000 | AL166: 0
B167: 158 | C167: BONIFICA RETE IDRICA COMUNE DI ZAGAROLO | D167: NO | E167: B1 | F167: B1.1 | G167: 3600000 | H167: 180 | I167: stimata | J167: ZAGAROLO | K167: NO | L167: Scheda progetto | M167: 2018 | S167: 0.08 | Y167: 0 | AA167: 0 | AC167: 0 | AE167: 0 | AG167: 500000 | AI167: 0 | AK167: 500000 | AL167: 0
B168: 159 | C168: ESTENSIONE RETE IDRICA COMUNE DI ALLUMIERE | D168: NO | E168: B7 | F168: B7.1 | G168: 30000 | H168: 20 | I168: stimata | J168: ALLUMIERE | K168: NO | L168: Scheda progetto | M168: 2017 | S168: 0.35 | Y168: 0 | AA168: 0 | AC168: 30000 | AE168: 40000 | AG168: 0 | AI168: 0 | AK168: 70000 | AL168: 0
B169: 160 | C169: ESTENSIONE RETE IDRICA COMUNE DI ARCINAZZO | D169: NO | E169: B7 | F169: B7.1 | G169: 30000 | H169: 30 | I169: stimata | J169: ARCINAZZO ROMANO | K169: NO | L169: Scheda progetto | M169: 2016 | S169: 0.35 | Y169: 0 | AA169: 0 | AC169: 80000 | AE169: 0 | AG169: 0 | AI169: 0 | AK169: 80000 | AL169: 0
B170: 161 | C170: ESTENSIONE RETE IDRICA COMUNE DI ARICCIA | D170: NO | E170: B7 | F170: B7.1 | G170: 30000 | H170: 20 | I170: stimata | J170: ARICCIA | K170: NO | L170: Scheda progetto | M170: 2017 | S170: 0.35 | Y170: 0 | AA170: 0 | AC170: 30000 | AE170: 40000 | AG170: 0 | AI170: 0 | AK170: 70000 | AL170: 0
B171: 162 | C171: ESTENSIONE RETE IDRICA COMUNE DI ARTENA | D171: NO | E171: B7 | F171: B7.1 | G171: 30000 | H171: 70 | I171: stimata | J171: ARTENA | K171: NO | L171: Scheda progetto | M171: 2017 | S171: 0.35 | Y171: 0 | AA171: 0 | AC171: 110000 | AE171: 110000 | AG171: 0 | AI171: 0 | AK171: 220000 | AL171: 0
B172: 163 | C172: ESTENSIONE RETE IDRICA COMUNE DI CANTERANO | D172: NO | E172: B7 | F172: B7.1 | G172: 30000 | H172: 30 | I172: stimata | J172: CANTERANO | K172: NO | L172: Scheda progetto | M172: 2016 | S172: 0.35 | Y172: 0 | AA172: 0 | AC172: 100000 | AE172: 0 | AG172: 0 | AI172: 0 | AK172: 100000 | AL172: 0
B173: 164 | C173: ESTENSIONE RETE IDRICA COMUNE DI CAPRANICA PRENESTINA | D173: NO | E173: B7 | F173: B7.1 | G173: 30000 | H173: 70 | I173: stimata | J173: CAPRANICA PRENESTINA | K173: NO | L173: Scheda progetto | M173: 2019 | S173: 0.35 | Y173: 0 | AA173: 0 | AC173: 0 | AE173: 0 | AG173: 0 | AI173: 250000 | AK173: 250000 | AL173: 0
B174: 165 | C174: ESTENSIONE RETE IDRICA COMUNE DI CASTELNUOVO DI PORTO | D174: NO | E174: B7 | F174: B7.1 | G174: 30000 | H174: 30 | I174: stimata | J174: CASTELNUOVO DI PORTO | K174: NO | L174: Scheda progetto | M174: 2017 | S174: 0.35 | Y174: 0 | AA174: 0 | AC174: 0 | AE174: 80000 | AG174: 0 | AI174: 0 | AK174: 80000 | AL174: 0
B175: 166 | C175: ESTENSIONE RETE IDRICA COMUNE DI CAVE | D175: NO | E175: B7 | F175: B7.1 | G175: 30000 | H175: 110 | I175: stimata | J175: CAVE | K175: NO | L175: Scheda progetto | M175: 2017 | S175: 0.35 | Y175: 0 | AA175: 0 | AC175: 0 | AE175: 380000 | AG175: 0 | AI175: 0 | AK175: 380000 | AL175: 0
B176: 167 | C176: ESTENSIONE RETE IDRICA COMUNE DI CERVARA DI ROMA | D176: NO | E176: B7 | F176: B7.1 | G176: 30000 | H176: 70 | I176: stimata | J176: CERVARA DI ROMA | K176: NO | L176: Scheda progetto | M176: 2019 | S176: 0.35 | Y176: 0 | AA176: 0 | AC176: 0 | AE176: 0 | AG176: 0 | AI176: 250000 | AK176: 250000 | AL176: 0
B177: 168 | C177: ESTENSIONE RETE IDRICA COMUNE DI CERVETERI | D177: NO | E177: B7 | F177: B7.1 | G177: 30000 | H177: 70 | I177: stimata | J177: CERVETERI | K177: NO | L177: Scheda progetto | M177: 2017 | S177: 0.35 | Y177: 0 | AA177: 0 | AC177: 0 | AE177: 250000 | AG177: 0 | AI177: 0 | AK177: 250000 | AL177: 0
B178: 169 | C178: POTENZIAMENTO CONDOTTA DISTRIBUTRICE ZONA "IV KM" NEL COMUNE DI COLLEFERRO | D178: NO | E178: B7 | F178: B7.1 | G178: 30000 | H178: 800 | I178: stimata | J178: COLLEFERRO | K178: NO | L178: Scheda progetto | M178: 2017 | S178: 0.35 | U178: 0 | W178: 0 | Y178: 0 | AA178: 0 | AC178: 0 | AE178: 780000 | AG178: 0 | AI178: 0 | AK178: 780000 | AL178: 0
B179: 170 | C179: ESTENSIONE RETE IDRICA COMUNE DI COLLEFERRO | D179: NO | E179: B7 | F179: B7.1 | G179: 30000 | H179: 60 | I179: stimata | J179: COLLEFERRO | K179: NO | L179: Scheda progetto | M179: 2016 | S179: 0.35 | Y179: 0 | AA179: 0 | AC179: 190000 | AE179: 0 | AG179: 0 | AI179: 0 | AK179: 190000 | AL179: 0
B180: 171 | C180: RETE IDRICA E FOGNARIA SU VICOLO COCCIA DI MORTO | D180: NO | E180: B7 | F180: B7.1 | G180: 30000 | H180: 250 | I180: rilevata | J180: FIUMICINO | K180: NO | L180: Lavori in corso | M180: 2018 | S180: 0.35 | U180: 0 | W180: 0 | Y180: 0 | AA180: 0 | AC180: 0 | AE180: 29006.25 | AG180: 53868.75 | AI180: 0 | AK180: 82875 | AL180: 0
B181: 172 | C181: ESTENSIONE RETE IDRICA COMUNE DI FIUMICINO | D181: NO | E181: B7 | F181: B7.1 | G181: 30000 | H181: 130 | I181: stimata | J181: FIUMICINO | K181: NO | L181: Scheda progetto | M181: 2016 | S181: 0.35 | Y181: 0 | AA181: 0 | AC181: 440000 | AE181: 0 | AG181: 0 | AI181: 0 | AK181: 440000 | AL181: 0
B182: 173 | C182: ESTENSIONE RETE IDRICA COMUNE DI FRASCATI | D182: NO | E182: B7 | F182: B7.1 | G182: 30000 | H182: 60 | I182: stimata | J182: FRASCATI | K182: NO | L182: Scheda progetto | M182: 2017 | S182: 0.35 | Y182: 0 | AA182: 0 | AC182: 0 | AE182: 200000 | AG182: 0 | AI182: 0 | AK182: 200000 | AL182: 0
B183: 174 | C183: AMPLIAMENTO RETE IDRICA COMUNE DI GAVIGNANO I E II LOTTO | D183: NO | E183: B7 | F183: B7.1 | G183: 30000 | H183: 300 | I183: stimata | J183: GAVIGNANO | K183: NO | L183: Scheda progetto | M183: OLTRE 2019 | S183: 0.35 | Y183: 0 | AA183: 0 | AC183: 180000 | AE183: 0 | AG183: 0 | AI183: 0 | AK183: 180000 | AL183: 0
B184: 175 | C184: LAVORI PER IL COMPLETAMENTO RETE IDRICA IN LOCALITÀ MACCARECCE | D184: NO | E184: B7 | F184: B7.1 | G184: 30000 | H184: 500 | I184: stimata | J184: GENAZZANO | K184: NO | L184: Scheda progetto | M184: 2018 | S184: 0.35 | U184: 0 | W184: 0 | Y184: 0 | AA184: 0 | AC184: 0 | AE184: 0 | AG184: 1350375 | AI184: 0 | AK184: 1350375 | AL184: 0
B185: 176 | C185: ESTENSIONE RETE IDRICA COMUNE DI GERANO | D185: NO | E185: B7 | F185: B7.1 | G185: 30000 | H185: 30 | I185: stimata | J185: GERANO | K185: NO | L185: Scheda progetto | M185: 2016 | S185: 0.35 | Y185: 0 | AA185: 0 | AC185: 100000 | AE185: 0 | AG185: 0 | AI185: 0 | AK185: 100000 | AL185: 0
B186: 177 | C186: ESTENSIONE RETE IDRICA COMUNE DI GROTTAFERRATA | D186: NO | E186: B7 | F186: B7.1 | G186: 30000 | H186: 70 | I186: stimata | J186: GROTTAFERRATA | K186: NO | L186: Scheda progetto | M186: 2019 | S186: 0.35 | Y186: 0 | AA186: 0 | AC186: 0 | AE186: 0 | AG186: 0 | AI186: 250000 | AK186: 250000 | AL186: 0
B187: 178 | C187: ALLACCIO IDRICO E FOGNARIO DEL NUOVO PLESSO SCOLASTICO INTERCOMUNALE DELLA VALLE DEL GIOVENZANO | D187: NO | E187: B7 | F187: B7.1 | G187: 30000 | H187: 500 | I187: stimata | J187: INTERCOMUNALE | K187: NO | L187: Scheda progetto | M187: 2017 | S187: 0.35 | U187: 0 | W187: 0 | Y187: 0 | AA187: 0 | AC187: 0 | AE187: 682500 | AG187: 0 | AI187: 0 | AK187: 682500 | AL187: 0
B188: 179 | C188: CONDOTTE PER UTENZA ROMA | D188: NO | E188: B7 | F188: B7.1 | G188: 30000 | H188: 940 | I188: stimata | J188: INTERCOMUNALE | K188: NO | L188: Scheda progetto | M188: 2019 | S188: 0.35 | Y188: 0 | AA188: 0 | AC188: 845000 | AE188: 845000 | AG188: 845000 | AI188: 845000 | AK188: 3380000 | AL188: 0
B189: 180 | C189: CONDOTTE PER UTENZA FUORI ROMA | D189: NO | E189: B7 | F189: B7.1 | G189: 30000 | H189: 730 | I189: stimata | J189: INTERCOMUNALE | K189: NO | L189: Scheda progetto | M189: 2019 | S189: 0.35 | Y189: 0 | AA189: 0 | AC189: 650000 | AE189: 650000 | AG189: 650000 | AI189: 650000 | AK189: 2600000 | AL189: 0
B190: 181 | C190: RETE IDRICA ALGIDOSA | D190: NO | E190: B7 | F190: B7.1 | G190: 30000 | H190: 280 | I190: stimata | J190: INTERCOMUNALE | K190: NO | L190: Scheda progetto | M190: 2017 | S190: 0.35 | Y190: 0 | AA190: 0 | AC190: 0 | AE190: 1000000 | AG190: 0 | AI190: 0 | AK190: 1000000 | AL190: 0
B191: 182 | C191: ESTENSIONE RETE IDRICA COMUNE DI JENNE | D191: NO | E191: B7 | F191: B7.1 | G191: 30000 | H191: 40 | I191: stimata | J191: JENNE | K191: NO | L191: Scheda progetto | M191: 2016 | S191: 0.35 | Y191: 0 | AA191: 0 | AC191: 120000 | AE191: 0 | AG191: 0 | AI191: 0 | AK191: 120000 | AL191: 0
B192: 183 | C192: ESTENSIONE RETE IDRICA COMUNE DI LANUVIO | D192: NO | E192: B7 | F192: B7.1 | G192: 30000 | H192: 70 | I192: stimata | J192: LANUVIO | K192: NO | L192: Scheda progetto | M192: 2016 | S192: 0.35 | Y192: 0 | AA192: 0 | AC192: 250000 | AE192: 0 | AG192: 0 | AI192: 0 | AK192: 250000 | AL192: 0
B193: 184 | C193: ESTENSIONE RETE IDRICA COMUNE DI MANZIANA | D193: NO | E193: B7 | F193: B7.1 | G193: 30000 | H193: 30 | I193: stimata | J193: MANZIANA | K193: NO | L193: Scheda progetto | M193: 2016 | S193: 0.35 | Y193: 0 | AA193: 0 | AC193: 100000 | AE193: 0 | AG193: 0 | AI193: 0 | AK193: 100000 | AL193: 0
B194: 185 | C194: ESTENSIONE RETE IDRICA COMUNE DI MARCELLINA | D194: NO | E194: B7 | F194: B7.1 | G194: 30000 | H194: 40 | I194: stimata | J194: MARCELLINA | K194: NO | L194: Scheda progetto | M194: 2017 | S194: 0.35 | Y194: 0 | AA194: 0 | AC194: 70000 | AE194: 70000 | AG194: 0 | AI194: 0 | AK194: 140000 | AL194: 0
B195: 186 | C195: ESTENSIONE RETE IDRICA COMUNE DI MONTE PORZIO CATONE | D195: NO | E195: B7 | F195: B7.1 | G195: 30000 | H195: 70 | I195: stimata | J195: MONTE PORZIO CATONE | K195: NO | L195: Scheda progetto | M195: 2017 | S195: 0.35 | Y195: 0 | AA195: 0 | AC195: 100000 | AE195: 150000 | AG195: 0 | AI195: 0 | AK195: 250000 | AL195: 0
B196: 187 | C196: ESTENSIONE RETE IDRICA VIA DELLE CARRARECCE | D196: NO | E196: B7 | F196: B7.1 | G196: 30000 | H196: 70 | I196: stimata | J196: MONTECOMPATRI | K196: NO | L196: Scheda progetto | M196: 2016 | S196: 0.35 | Y196: 0 | AA196: 0 | AC196: 250000 | AE196: 0 | AG196: 0 | AI196: 0 | AK196: 250000 | AL196: 0
B197: 188 | C197: ESTENSIONE RETE IDRICA COMUNE DI MONTELANICO | D197: NO | E197: B7 | F197: B7.1 | G197: 30000 | H197: 30 | I197: stimata | J197: MONTELANICO | K197: NO | L197: Scheda progetto | M197: 2017 | S197: 0.35 | Y197: 0 | AA197: 0 | AC197: 0 | AE197: 80000 | AG197: 0 | AI197: 0 | AK197: 80000 | AL197: 0
B198: 189 | C198: ESTENSIONE RETE IDRICA COMUNE DI NAZZANO | D198: NO | E198: B7 | F198: B7.1 | G198: 30000 | H198: 30 | I198: stimata | J198: NAZZANO | K198: NO | L198: Scheda progetto | M198: 2017 | S198: 0.35 | Y198: 0 | AA198: 0 | AC198: 0 | AE198: 80000 | AG198: 0 | AI198: 0 | AK198: 80000 | AL198: 0
B199: 190 | C199: ESTENSIONE RETE IDRICA COMUNE DI OLEVANO | D199: NO | E199: B7 | F199: B7.1 | G199: 30000 | H199: 70 | I199: stimata | J199: OLEVANO ROMANO | K199: NO | L199: Scheda progetto | M199: 2019 | S199: 0.35 | Y199: 0 | AA199: 0 | AC199: 0 | AE199: 0 | AG199: 0 | AI199: 250000 | AK199: 250000 | AL199: 0
B200: 191 | C200: ESTENSIONE RETE IDRICA COMUNE DI ORIOLO ROMANO | D200: NO | E200: B7 | F200: B7.1 | G200: 30000 | H200: 140 | I200: stimata | J200: ORIOLO ROMANO | K200: NO | L200: Scheda progetto | M200: 2016 | S200: 0.35 | Y200: 0 | AA200: 0 | AC200: 500000 | AE200: 0 | AG200: 0 | AI200: 0 | AK200: 500000 | AL200: 0
B201: 192 | C201: ESTENSIONE RETE IDRICA COMUNE DI PALESTRINA | D201: NO | E201: B7 | F201: B7.1 | G201: 30000 | H201: 30 | I201: stimata | J201: PALESTRINA | K201: NO | L201: Scheda progetto | M201: 2017 | S201: 0.35 | Y201: 0 | AA201: 0 | AC201: 0 | AE201: 100000 | AG201: 0 | AI201: 0 | AK201: 100000 | AL201: 0
B202: 193 | C202: ESTENSIONE RETE IDRICA COMUNE DI RIANO | D202: NO | E202: B7 | F202: B7.1 | G202: 30000 | H202: 30 | I202: stimata | J202: RIANO | K202: NO | L202: Scheda progetto | M202: 2017 | S202: 0.35 | Y202: 0 | AA202: 0 | AC202: 0 | AE202: 80000 | AG202: 0 | AI202: 0 | AK202: 80000 | AL202: 0
... 332 more rows
